Cogmind - Beta 16.1 @@@ ROGUE MODE // 2026.02.21 @ 20:05:51 // Winter2019/RPGLIKE Player: UniqueName Result: Destroyed by P-80 Master with Gamma Rifle Performance ------------- Evolutions (9) 4500 Regions Visited (30) 6000 Robots Destroyed (814) 4070 Value Destroyed (47753) 47753 Prototype IDs (33) 660 Alien Tech Used (0) 0 Bonus (36478) 36478 TOTAL SCORE: 99461 Bonus ------- Triggered High Security 1500 High Alert Combat Kills 26283 Follower Combat Kills 885 Entered Garrisons 1600 Used RIF Installer 5000 Network Hubs Disabled 400 Met R17 at Cetus 500 Scanned by Researcher 500 Friendly Fire -190 Cogmind --------- Core Integrity 0/2300 Matter 553/800 Energy 540/540 System Corruption 29% Temperature Cool (0) Movement Flying (39) Location -1/Access Parts ------- > --- POWER (1) -------- Zero-point Reactor > --- PROPULSION (6) --- Impulse Thruster Array Impulse Thruster Array Impulse Thruster Array > --- UTILITY (7) ------ Advanced Cooling System Advanced Weight Redist. System Advanced Signal Interpreter > --- WEAPON (5) ------- Improved KE Penetrator Advanced KE Penetrator Advanced KE Penetrator Enhanced Hardcell Cannon > --- INVENTORY (3) ---- Improved System Restoration Module Heavy Mass Driver Peak State ------------ > --- POWER ------------ Zero-point Reactor > --- PROPULSION ------- Impulse Thruster Array Impulse Thruster Array Impulse Thruster Array > --- UTILITY ---------- Advanced Cooling System Advanced Weight Redist. System Advanced Signal Interpreter Core Analyzer Improved Reaction Control System Advanced Phase Shifter Advanced Force Field > --- WEAPON ----------- Improved KE Penetrator Advanced KE Penetrator Advanced KE Penetrator Advanced KE Penetrator Enhanced Hardcell Cannon > --- INVENTORY -------- Improved System Restoration Module Heavy Mass Driver [Rating: 139] Favorites ----------- Power Light Antimatter Reactor Engine Heavy Ion Engine Power Core Light Nuclear Core Reactor Light Antimatter Reactor Propulsion VTOL Module Treads Light Treads Leg Aluminum Leg Hover Unit Hover Unit Flight Unit VTOL Module Utility Advanced Weight Redist. System Device Advanced Weight Redist. System Processor Core Analyzer Protection Centrium Medium Armor Plating Weapon Advanced KE Penetrator Energy Gun Medium Laser Energy Cannon Advanced Beam Cannon Ballistic Gun Advanced KE Penetrator Ballistic Cannon Magnetic Acceleration Cannon Launcher Grenade Launcher Slashing Weapon Makeshift Axe Build | -11 -10 -10 -9 -9 -9 -8 -8 -8 -8 -8 -7 -7 -7 -7 -6 -6 -6 -6 -6 -6 -6 -5 -4 -3 -3 -2 -2 -1 -1 -1 ------- Run | Yrd Mat Min Mat Min Exi Min Mat Gar Mat Gar Fac Gar Fac Gar Fac Gar Ext Cet Arc Hub Gar Fac Fac Res Gar Res Qua Acc Gar Acc Slots Evolved 15 | 3 . 1 . . . 1 . 1 . 1 1 1 . 1 . 1 . . . 1 . 1 1 . 1 . . . . . Power . | . . . . . . . . . . . . . . . . . . . . . . . . . . . . . . . Propulsion 5 | 1 . . . . . . . . . . 1 . . . . 1 . . . 1 . . 1 . . . . . . . Utility 6 | 1 . 1 . . . . . . . 1 . 1 . 1 . . . . . . . 1 . . . . . . . . Weapon 4 | 1 . . . . . 1 . 1 . . . . . . . . . . . . . . . . 1 . . . . . Parts Attached 114 | 6 12 1 11 1 1 4 . 7 1 1 2 5 . 5 1 3 . 7 . 7 5 6 3 . 7 6 3 . 4 5 Power 15 | 1 3 . . . . 1 . 1 . . 1 2 . 1 . . . . . 1 . . 1 . 1 1 1 . . . Engine 6 | 1 3 . . . . . . . . . 1 . . . . . . . . 1 . . . . . . . . . . Core 3 | . . . . . . 1 . 1 . . . 1 . . . . . . . . . . . . . . . . . . Reactor 6 | . . . . . . . . . . . . 1 . 1 . . . . . . . . 1 . 1 1 1 . . . Propulsion 38 | 3 4 1 2 . . . . . . . 1 . . 2 . 1 . 3 . 6 2 3 1 . 2 3 1 . . 3 Treads 1 | 1 . . . . . . . . . . . . . . . . . . . . . . . . . . . . . . Leg 9 | 2 1 . . . . . . . . . . . . . . . . 3 . 3 . . . . . . . . . . Wheel . | . . . . . . . . . . . . . . . . . . . . . . . . . . . . . . . Hover 1 | . 1 . . . . . . . . . . . . . . . . . . . . . . . . . . . . . Flight 27 | . 2 1 2 . . . . . . . 1 . . 2 . 1 . . . 3 2 3 1 . 2 3 1 . . 3 Utility 25 | . 2 . 1 1 . 1 . 1 1 1 . 1 . 1 . 2 . 1 . . 1 2 1 . 1 1 1 . 4 1 Device 17 | . 1 . 1 1 . . . 1 1 1 . . . 1 . 2 . . . . 1 2 . . 1 . 1 . 2 1 Storage . | . . . . . . . . . . . . . . . . . . . . . . . . . . . . . . . Processor 7 | . 1 . . . . 1 . . . . . 1 . . . . . . . . . . 1 . . 1 . . 2 . Hackware . | . . . . . . . . . . . . . . . . . . . . . . . . . . . . . . . Protection 1 | . . . . . . . . . . . . . . . . . . 1 . . . . . . . . . . . . Artifact . | . . . . . . . . . . . . . . . . . . . . . . . . . . . . . . . Weapon 36 | 2 3 . 8 . 1 2 . 5 . . . 2 . 1 1 . . 3 . . 2 1 . . 3 1 . . . 1 Energy Gun 4 | 2 . . 2 . . . . . . . . . . . . . . . . . . . . . . . . . . . Energy Cannon 1 | . . . 1 . . . . . . . . . . . . . . . . . . . . . . . . . . . Ballistic Gun 20 | . 1 . 5 . 1 2 . 3 . . . 1 . . . . . 3 . . 1 1 . . 2 . . . . . Ballistic Cannon 7 | . . . . . . . . 1 . . . . . 1 1 . . . . . 1 . . . 1 1 . . . 1 Launcher 3 | . 2 . . . . . . . . . . 1 . . . . . . . . . . . . . . . . . . Special Weapon . | . . . . . . . . . . . . . . . . . . . . . . . . . . . . . . . Impact Weapon . | . . . . . . . . . . . . . . . . . . . . . . . . . . . . . . . Slashing Weapon 1 | . . . . . . . . 1 . . . . . . . . . . . . . . . . . . . . . . Piercing Weapon . | . . . . . . . . . . . . . . . . . . . . . . . . . . . . . . . Special Melee Weapon . | . . . . . . . . . . . . . . . . . . . . . . . . . . . . . . . Unidentified Prototypes 15 | . . . 4 1 . . . . . . 1 . . . . . . 2 . 1 . 1 . . 2 1 2 . . . Parts Lost 7 | . 1 . 1 . . . . . . . . . . . . . . 2 . . . . . . . . . . 1 2 Power 1 | . 1 . . . . . . . . . . . . . . . . . . . . . . . . . . . . . Propulsion 2 | . . . . . . . . . . . . . . . . . . 2 . . . . . . . . . . . . Utility 3 | . . . . . . . . . . . . . . . . . . . . . . . . . . . . . 1 2 Weapon 1 | . . . 1 . . . . . . . . . . . . . . . . . . . . . . . . . . . Highest Loss Streak 2 | . 1 . 1 . . . . . . . . . . . . . . 1 . . . . . . . . . . 1 2 To Critical Strikes . | . . . . . . . . . . . . . . . . . . . . . . . . . . . . . . . Average Backups 1 | . . 1 1 2 2 2 2 2 2 2 2 2 3 2 2 2 2 2 2 2 2 2 2 2 2 2 2 2 2 2 Power . | . . . . . . . . . . . . . . . . . . . . . . . . . . . . . . . Propulsion . | . . . . . . . . . . . . . . . . . . . . . . . . . . . . . . . Utility . | . . 1 1 1 . . . . . . . . 1 . . . . . . . 1 1 1 1 1 1 1 1 1 1 Weapon 1 | . . . . 1 1 2 2 2 2 2 2 2 2 2 2 2 2 2 2 1 1 1 1 1 1 1 1 1 1 1 Tool/Special . | . . . . . . . . . . . . . . . . . . . . . . . . . . . . . . . Unused Backups 11 | . . 1 2 . 1 . 1 1 . . 1 . . . . . . . . . 1 . . . . . . . . 3 Power 1 | . . . . . . . . 1 . . . . . . . . . . . . . . . . . . . . . . Propulsion . | . . . . . . . . . . . . . . . . . . . . . . . . . . . . . . . Utility 7 | . . 1 . . 1 . . . . . 1 . . . . . . . . . 1 . . . . . . . . 3 Weapon 3 | . . . 2 . . . 1 . . . . . . . . . . . . . . . . . . . . . . . Tool/Special . | . . . . . . . . . . . . . . . . . . . . . . . . . . . . . . . Average Slot Usage (%) 93 | . 89 92 98 100 100 100 100 99 100 100 96 100 100 99 100 99 100 96 100 99 99 93 87 83 86 87 89 89 87 78 Engine 2 | . 12 12 12 12 12 5 . . . . 6 5 . . . . . . . . . . . . . . . . . . Core 1 | . . . . . . 5 11 10 10 9 1 1 7 4 . . . . . . . . . . . . . . . . Reactor 3 | . . . . . . . . . . . . . . 2 7 6 6 6 6 6 6 5 5 5 5 3 5 5 5 5 Leg 2 | . 20 . . . . . . . . . . . . . . . . 3 13 11 . . . . . . . . . . Flight 20 | . 6 26 24 25 25 22 22 20 20 18 20 23 23 22 21 24 26 19 13 17 30 23 16 16 20 21 21 21 21 15 Device 23 | . 12 12 24 25 25 22 22 20 20 25 25 23 23 24 28 26 26 25 26 25 25 28 28 27 24 25 26 26 22 22 Processor 11 | . 7 12 12 12 12 11 11 10 10 9 8 14 15 14 14 13 13 13 13 12 12 11 11 11 10 10 10 10 11 8 Ballistic Gun 21 | . 12 12 20 25 25 32 33 35 30 27 25 23 23 22 21 20 20 20 20 18 18 17 16 16 19 21 21 21 21 20 Ballistic Cannon 4 | . . . . . . . . 1 10 9 8 6 7 7 7 5 6 6 6 6 5 5 5 5 5 5 5 5 5 5 Launcher 1 | . 8 12 3 . . . . . . . . . . . . . . . . . . . . . . . . . . . Peak Build Rating 139 | 5 11 11 18 23 20 24 24 33 35 37 43 52 50 56 55 61 61 77 77 82 87 100 111 109 122 129 133 133 137 139 Average Rating 69 | 3 8 11 15 18 19 22 24 26 34 36 40 47 50 51 54 58 61 63 77 79 83 95 106 109 116 125 130 133 133 130 On Entrance 61 | . 5 11 11 18 18 20 24 24 33 35 37 43 50 50 55 55 61 61 77 77 76 87 100 109 109 122 129 133 133 137 Avg Prop Armor Cover (%) 2 | 24 9 . . . . . . . . . . . . . . . . 2 2 2 . . . . . . . . 1 . Naked Turns . | . . . . . . . . . . . . . . . . . . . . . . . . . . . . . . . Heaviest Build 74 | 7 13 13 15 15 15 17 14 25 25 26 26 41 37 42 39 40 40 46 46 46 50 52 65 65 65 72 73 73 73 74 Greatest Support 88 | 20 25 13 21 21 21 26 26 26 29 29 34 39 39 39 39 49 49 64 64 80 57 63 67 67 78 83 83 82 82 88 Greatest Overweight (x) 1 | . . . . . . . . . . . . 1 . 1 . . . 1 . 1 . . 1 . . . . . . . Average Overweight (x) . | . . . . . . . . . . . . . . . . . . . . . . . . . . . . . . . Largest Inventory Capacity 3 | . 1 1 2 2 2 2 2 3 3 3 3 3 3 3 3 3 3 3 3 3 3 3 3 3 3 3 3 3 3 3 Average Capacity 2 | . . 1 1 2 2 2 2 2 3 3 3 3 3 3 3 3 3 3 3 3 3 3 3 3 3 3 3 3 3 3 Most Carried 3 | . 1 1 2 2 2 2 2 3 3 3 3 3 3 3 3 3 3 3 3 3 3 3 3 3 3 3 3 3 3 3 Average Carried 2 | . . 1 1 1 1 2 1 2 2 2 2 2 3 2 3 3 3 2 3 2 2 2 3 3 3 3 3 3 3 2 Final Capacity 3 | . 1 1 2 2 2 2 2 3 3 3 3 3 3 3 3 3 3 3 3 3 3 3 3 3 3 3 3 3 3 3 Final Carried 3 | . 1 1 2 2 2 2 2 2 3 2 3 3 3 3 3 3 3 3 3 3 3 3 3 3 3 3 3 3 3 3 Class Distribution -------------------- 39% | Scout 38% | Scavenger-Scout 8% | Mutant 7% | Scavenger-Gunner 5% | Sprinter Dominant Class ---------------- Mutant | -10/Materials Mutant | -10/Mines Sprinter | -9/Materials Scout | -9/Mines Scout | -9/Exiles Scout | -8/Mines Scout | -8/Materials Scout | -8/Garrison Scout | -8/Materials Scout | -8/Garrison Scout | -7/Factory Scout | -7/Garrison Scout | -7/Factory Scavenger-Scout | -7/Garrison Scavenger-Scout | -6/Factory Scavenger-Scout | -6/Garrison Scavenger-Scout | -6/Extension Scout | -6/Cetus Scavenger-Gunner | -6/Archives Scavenger-Gunner | -6/Hub_04(d) Scavenger-Scout | -6/Garrison Scavenger-Scout | -5/Factory Scout | -4/Factory Scout | -3/Research Scavenger-Scout | -3/Garrison Scavenger-Scout | -2/Research Scavenger-Scout | -2/Quarantine Scavenger-Scout | -1/Access Scavenger-Scout | -1/Garrison Scout | -1/Access Resources | -11 -10 -10 -9 -9 -9 -8 -8 -8 -8 -8 -7 -7 -7 -7 -6 -6 -6 -6 -6 -6 -6 -5 -4 -3 -3 -2 -2 -1 -1 -1 ----------- Run | Yrd Mat Min Mat Min Exi Min Mat Gar Mat Gar Fac Gar Fac Gar Fac Gar Ext Cet Arc Hub Gar Fac Fac Res Gar Res Qua Acc Gar Acc Matter Collected 23264 | 260 494 74 527 40 10 376 567 1004 . 828 219 1208 . 1061 . 1337 1134 754 113 1328 1121 950 454 . 1608 1299 364 577 2862 2695 Remotely . | . . . . . . . . . . . . . . . . . . . . . . . . . . . . . . . Salvage Created 34855 | . 442 110 1241 . . 899 770 1027 . 793 116 781 . 882 . 1668 2096 452 210 3472 1712 1826 1161 . 2584 2349 627 1359 3447 4831 Parts 1822 | . 51 10 90 . . 32 48 65 . 65 16 69 . 54 . 80 63 19 16 175 106 87 44 . 123 117 33 77 150 232 Haulers Intercepted 21 | . 2 . 4 . . . 1 . . . . . . . . . . . . 8 . 3 2 . . . . 1 . . Recyclers Shooed 3 | . . . . . . . . . . . . . . . . . . . . . . . . . . 1 . 1 . 1 Parts Field Recycled . | . . . . . . . . . . . . . . . . . . . . . . . . . . . . . . . Retrieved Matter . | . . . . . . . . . . . . . . . . . . . . . . . . . . . . . . . Parts Self-Destructed . | . . . . . . . . . . . . . . . . . . . . . . . . . . . . . . . Prevented . | . . . . . . . . . . . . . . . . . . . . . . . . . . . . . . . Parts Restored . | . . . . . . . . . . . . . . . . . . . . . . . . . . . . . . . Kills | -11 -10 -10 -9 -9 -9 -8 -8 -8 -8 -8 -7 -7 -7 -7 -6 -6 -6 -6 -6 -6 -6 -5 -4 -3 -3 -2 -2 -1 -1 -1 ------- Run | Yrd Mat Min Mat Min Exi Min Mat Gar Mat Gar Fac Gar Fac Gar Fac Gar Ext Cet Arc Hub Gar Fac Fac Res Gar Res Qua Acc Gar Acc Combat Hostiles Destroyed 677 | . 15 8 35 . . 18 15 33 . 31 7 35 . 30 . 39 38 12 4 41 37 37 9 . 49 28 8 18 51 79 Guns 528 | . 10 5 24 . . 18 15 33 . 25 5 26 . 22 . 28 27 9 3 31 32 26 9 . 41 23 8 12 39 57 Cannons 120 | . . . . . . . . . . 6 2 9 . 8 . 11 11 3 1 8 5 7 . . 8 5 . 6 12 18 AOE 29 | . 5 3 11 . . . . . . . . . . . . . . . . 2 . 4 . . . . . . . 4 Classes Destroyed 24 | . 8 . 5 . . 1 . 2 . . . . . 1 . . 2 . . 2 1 . . . . . . . . 2 Worker 31 | . 2 . 1 . . . 1 . . . . . . . . . . . . 13 . 1 2 . . 6 . 2 . 3 Builder 24 | . 4 . . . . . 1 . . . . . . . . . 2 . . 4 . . . . . 9 . 1 . 3 Tunneler 5 | . 1 . . . . . . . . . . . . . . . . . . 1 . . 1 . . 1 . 1 . . Hauler 21 | . 2 . 4 . . . 1 . . . . . . . . . . . . 8 . 3 2 . . . . 1 . . Recycler 16 | . . . 2 . . . . . . . . . . . . . 2 . . 5 . . 1 . . 2 . 1 . 3 Mechanic 3 | . 1 . 1 . . . . . . . . . . . . . . . . . . 1 . . . . . . . . Operator 8 | . . . 1 . . . . . . . 1 . . . . . . . . 1 . 1 . . . . 3 . . 1 Watcher 29 | . 2 . 3 . . . 2 . . . . 1 . . . . . 2 . 2 3 1 2 . . 2 3 1 1 4 Swarmer 127 | . 5 6 8 . . 4 3 6 . 14 . 15 . 6 . 6 . . . 6 8 9 . . 18 . . . . 13 Cutter 2 | . . . . . . . . . . . . . . . . . . . . . 2 . . . . . . . . . Saboteur 10 | . . . . . . . . . . . . . . . . . . . . 1 . . . . 1 . . . . 8 Grunt 271 | . 10 2 17 . . 11 9 16 . 11 7 5 . 10 . 9 28 2 . 15 9 17 4 . 21 11 4 3 29 21 Brawler 16 | . . . 1 . . 1 . . . . . . . 1 . 1 . . . 2 2 1 . . . . . . 2 5 Duelist 15 | . . . 1 . . . . . . . . . . 2 . . . . . 1 3 2 . . . 1 . . 1 4 Protector 5 | . . . . . . . . . . . . . . . . . 1 . . 1 . . 1 . . 1 . . . 1 Sentry 96 | . . . 8 . . . 3 7 . 6 . 13 . 5 . 14 5 . 4 6 5 3 2 . 1 2 2 2 4 4 Demolisher 1 | . . . . . . . . 1 . . . . . . . . . . . . . . . . . . . . . . Specialist 8 | . . . . . . . . 1 . . . . . . . 2 . . . 4 1 . . . . . . . . . Hunter 53 | . . . . . . 2 . 2 . . . 2 . . . 4 . 2 . 3 1 5 2 . 4 7 2 5 8 4 Programmer 50 | . . . . . . . . . . . . . . 6 . 3 1 . . 1 4 . . . 3 6 . 7 6 13 Heavy 3 | . . . . . . . . . . . . . . . . . . . . 1 . . . . . . . 1 . 1 Behemoth 7 | . . . . . . . . . . . . . . . . . 2 . . . 2 . . . 1 . . . 1 1 Cetus Guard 8 | . . . . . . . . . . . . . . . . . . 8 . . . . . . . . . . . . Striker 2 | . . . . . . . . . . . . . . . . . . . . . . . . . . . . . . 2 Executioner 2 | . . . . . . . . . . . . . . . . . . . . . . . . . . . . . . 2 Thug 1 | . . . . . . . . . . . . . . . . . 1 . . . . . . . . . . . . . Best Kill Streak 32 | . 6 3 7 . . 5 12 6 . 16 4 6 . 11 . 11 25 4 2 17 11 28 6 . 12 27 5 18 14 32 Combat Bots Only 28 | . 3 3 6 . . 5 10 6 . 16 4 6 . 11 . 11 19 4 2 12 9 14 5 . 12 17 3 14 14 28 Max Kills in Single Turn 8 | . 3 2 3 . . 2 2 2 . 2 1 2 . 2 . 2 2 1 1 8 2 6 3 . 3 4 2 2 2 4 Gunslinging 1 | . . . . . . 1 1 1 . . . . . . . . . . . . 1 . . . . . . 1 . . Exploded 4 | . 2 2 3 . . . . . . . . . . . . . . . . 2 . 4 . . . . . . . 4 Melee . | . . . . . . . . . . . . . . . . . . . . . . . . . . . . . . . Uniques/NPCs Destroyed . | . . . . . . . . . . . . . . . . . . . . . . . . . . . . . . . Combat | -11 -10 -10 -9 -9 -9 -8 -8 -8 -8 -8 -7 -7 -7 -7 -6 -6 -6 -6 -6 -6 -6 -5 -4 -3 -3 -2 -2 -1 -1 -1 -------- Run | Yrd Mat Min Mat Min Exi Min Mat Gar Mat Gar Fac Gar Fac Gar Fac Gar Ext Cet Arc Hub Gar Fac Fac Res Gar Res Qua Acc Gar Acc Hostile Shots Fired 3751 | . 83 36 124 . . 49 40 117 . 109 16 345 . 173 . 227 215 88 8 167 117 100 28 . 125 187 23 147 587 640 Missed 2081 | . 23 18 47 . . 23 14 33 . 44 7 203 . 87 . 131 117 41 4 86 63 68 11 . 57 122 19 95 359 409 Hits 1670 | . 60 18 77 . . 26 26 84 . 65 9 142 . 86 . 96 98 47 4 81 54 32 17 . 68 65 4 52 228 231 Melee 28 | . . . 1 . . . . 1 . . . . . 1 . . . . . 1 5 1 . . . . . . 1 17 Projectile 1642 | . 60 18 76 . . 26 26 83 . 65 9 142 . 85 . 96 98 47 4 80 49 31 17 . 68 65 4 52 227 214 AOE 5 | . . . . . . . . 4 . . . . . . . . . . . . . . . . . . . . . 1 Critical Strikes 67 | . 1 1 3 . . . 1 1 . 1 . 1 . 1 . . 6 6 . 1 4 . . . 8 4 . 1 14 13 Part Disruptions 3 | . . . . . . . . . . . . . . . . . . . . . . . . . . . . . 2 1 Damage Taken 20321 | . 840 159 823 . . 322 280 1024 . 687 112 1242 . 876 . 879 1071 906 71 1121 788 399 150 . 623 632 34 511 2552 4219 Core 16209 | . 687 126 667 . . 269 225 814 . 534 91 983 . 710 . 698 838 735 55 891 632 314 114 . 489 495 26 403 2000 3413 Absorbed by Shields 4513 | . . . . . . . . 37 . 10 . . . 13 . 49 . . . . 7 139 148 . 502 528 34 533 1453 1060 Redirected to Core 13651 | . 456 99 523 . . 168 170 678 . 475 66 847 . 538 . 588 773 615 55 762 539 286 106 . 427 447 26 344 1811 2852 Ignored by Resistances 5593 | . . . 121 . . 64 82 293 . 203 33 391 . 198 . 286 310 247 20 279 173 137 86 . 312 251 18 195 949 945 Regen/Repaired (Parts) 107 | . . . 107 . . . . . . . . . . . . . . . . . . . . . . . . . . . Core Remaining (%) 83 | 100 . 31 . . . 90 . . . 74 . . . 91 . . . . . . 97 76 83 . 97 . 100 . . . Volleys Fired 1323 | . 73 34 124 . . 30 31 54 . 46 13 66 . 66 . 77 64 37 5 69 58 45 20 1 75 51 21 45 91 127 Largest 5 | . 2 2 2 . . 3 3 4 . 4 4 4 . 4 . 4 4 4 4 4 4 4 4 1 5 5 5 5 5 5 Hottest 196 | . 100 50 50 . . 70 70 93 . 121 121 125 . 125 . 125 125 149 149 149 159 159 159 35 192 196 196 196 196 196 Shots Fired 4654 | . 117 37 210 . . 85 92 200 . 168 51 225 . 200 . 257 256 145 20 276 211 180 77 1 309 255 96 211 409 566 Gun 3683 | . 101 34 199 . . 85 92 200 . 122 38 158 . 134 . 180 192 108 15 207 162 135 58 1 242 204 76 169 326 445 Cannon 928 | . . . . . . . . . . 46 13 62 . 66 . 69 64 37 5 69 49 45 19 . 67 51 20 42 83 121 Launcher 43 | . 16 3 11 . . . . . . . . 5 . . . 8 . . . . . . . . . . . . . . Special . | . . . . . . . . . . . . . . . . . . . . . . . . . . . . . . . Kinetic 4574 | . 64 34 199 . . 85 92 200 . 168 51 220 . 200 . 249 256 145 20 276 211 180 77 1 309 255 96 211 409 566 Thermal 37 | . 37 . . . . . . . . . . . . . . . . . . . . . . . . . . . . . Explosive 43 | . 16 3 11 . . . . . . . . 5 . . . 8 . . . . . . . . . . . . . . Electromagnetic . | . . . . . . . . . . . . . . . . . . . . . . . . . . . . . . . Robot Hit Streak 51 | . 11 13 50 . . 51 17 17 . 16 11 18 . 19 . 17 12 29 14 29 31 19 19 . 35 17 13 14 32 44 Robot Miss Streak 8 | . 4 3 4 . . 3 2 4 . 3 5 8 . 4 . 4 6 4 1 2 2 1 1 . 4 4 4 2 5 3 Penetration Max 1 | . . . . . . . . . . . . . . . . . . . 1 1 1 1 1 . 1 1 1 1 1 1 Secondary Targets 24 | . 1 . 4 . . 1 3 11 . . . . . . . . . . . . 2 . . . . . . 1 . 1 Max Gunslinging Chain 2 | . 1 . 1 . . 1 1 1 . . . . . . . . . . . . 2 . . . . . . 1 . 1 Shots Hit Robots 3068 | . 82 27 177 . . 65 68 156 . 97 35 133 . 125 . 163 172 99 14 171 123 121 48 . 176 166 44 154 272 380 Core Hits 1883 | . 44 14 94 . . 42 43 81 . 53 20 109 . 109 . 138 164 82 8 109 59 71 26 . 98 94 26 58 135 206 Critical Kills 127 | . . . . . . . 1 . . . . . . . . . . 1 . 17 9 10 9 . 10 16 5 4 17 28 Critical Parts Destroyed 154 | . . . 1 . . . 1 1 . 1 . . . . . . 3 . 2 13 13 10 5 . 11 18 1 11 24 39 Critical Strikes 338 | . 4 . 1 . . . 2 1 . 3 . 1 . 1 . 3 6 1 3 34 23 22 14 . 25 42 6 17 49 80 Burn 4 | . 4 . . . . . . . . . . . . . . . . . . . . . . . . . . . . . Destroy 296 | . . . 1 . . . 2 1 . 1 . . . . . . 3 1 3 33 23 20 14 . 21 35 6 16 46 70 Blast 38 | . . . . . . . . . . 2 . 1 . 1 . 3 3 . . 1 . 2 . . 4 7 . 1 3 10 Melee Attacks 22 | . . . . . . . . 19 . 2 . 1 . . . . . . . . . . . . . . . . . . Impact . | . . . . . . . . . . . . . . . . . . . . . . . . . . . . . . . Slashing 22 | . . . . . . . . 19 . 2 . 1 . . . . . . . . . . . . . . . . . . Piercing . | . . . . . . . . . . . . . . . . . . . . . . . . . . . . . . . Sneak Attacks . | . . . . . . . . . . . . . . . . . . . . . . . . . . . . . . . Combat Hostiles . | . . . . . . . . . . . . . . . . . . . . . . . . . . . . . . . Follow-up Attacks . | . . . . . . . . . . . . . . . . . . . . . . . . . . . . . . . Damage Inflicted 108002 | . 1617 475 2593 . . 1192 1392 2980 . 2584 868 3353 . 3731 . 4813 5886 3084 658 8934 5463 6511 2061 . 6582 7470 1742 5872 10364 17777 Guns 81789 | . 668 183 1608 . . 1192 1392 2980 . 1959 673 2534 . 2711 . 3525 4228 2319 532 6444 4563 4591 1687 . 5389 5825 1433 4416 7901 13036 Cannons 21467 | . . . . . . . . . . 625 195 815 . 1020 . 1254 1658 765 126 1364 900 1190 374 . 1193 1645 309 1456 2463 4115 Explosions 4739 | . 949 292 985 . . . . . . . . 4 . . . 34 . . . 1119 . 730 . . . . . . . 626 Melee . | . . . . . . . . . . . . . . . . . . . . . . . . . . . . . . . Ramming 7 | . . . . . . . . . . . . . . . . . . . . 7 . . . . . . . . . . Kinetic 102902 | . 314 183 1608 . . 1192 1392 2980 . 2584 868 3349 . 3731 . 4779 5886 3084 658 7808 5463 5781 2061 . 6582 7470 1742 5872 10364 17151 Thermal 354 | . 354 . . . . . . . . . . . . . . . . . . . . . . . . . . . . . Explosive 3534 | . 863 292 985 . . . . . . . . 4 . . . 34 . . . . . 730 . . . . . . . 626 Electromagnetic 1205 | . 86 . . . . . . . . . . . . . . . . . . 1119 . . . . . . . . . . Impact . | . . . . . . . . . . . . . . . . . . . . . . . . . . . . . . . Slashing . | . . . . . . . . . . . . . . . . . . . . . . . . . . . . . . . Piercing . | . . . . . . . . . . . . . . . . . . . . . . . . . . . . . . . Highest Corruption 29 | . . . 1 1 1 1 . . . . 1 1 1 4 . . . . . 1 1 . . . . 1 1 8 12 29 Average Corruption 6 | . . . 1 1 1 1 . . . . 1 1 1 2 . . . . . 1 1 . . . . 1 1 5 11 16 Corruption Purged . | . . . . . . . . . . . . . . . . . . . . . . . . . . . . . . . Corruption Blocked . | . . . . . . . . . . . . . . . . . . . . . . . . . . . . . . . Effects 201 | . . . 1 1 2 1 . . . . 4 5 . 16 . . . . . . 8 . . . . 2 6 6 40 109 Message Errors 31 | . . . . . 1 . . . . . . 1 . 5 . . . . . . 2 . . . . . 1 . 3 18 Matter Fused 35 | . . . 1 . . 1 . . . . . . . 2 . . . . . . 1 . . . . 1 1 2 9 17 Heat Flow Errors 24 | . . . . . . . . . . . 1 . . 2 . . . . . . . . . . . 1 2 1 4 13 Energy Discharges 22 | . . . . 1 1 . . . . . 2 2 . 3 . . . . . . 2 . . . . . 1 1 4 5 Parts Rejected 4 | . . . . . . . . . . . . . . . . . . . . . 1 . . . . . . . 1 2 Data Loss (minor) 11 | . . . . . . . . . . . . . . 1 . . . . . . 2 . . . . . . . 1 7 Data Loss (major) 8 | . . . . . . . . . . . . . . 2 . . . . . . . . . . . . . . 3 3 Misfires 2 | . . . . . . . . . . . . 2 . . . . . . . . . . . . . . . . . . Alerts 5 | . . . . . . . . . . . . . . . . . . . . . . . . . . . . . 2 3 Misdirections 18 | . . . . . . . . . . . . . . . . . . . . . . . . . . . . . 2 16 Weapon Failures 41 | . . . . . . . . . . . 1 . . 1 . . . . . . . . . . . . 1 2 11 25 Overload Shots . | . . . . . . . . . . . . . . . . . . . . . . . . . . . . . . . Overflow Damage 990 | . 8 6 30 . . . . . . 17 . 12 . 30 . . 60 31 35 108 42 17 26 . . 132 8 140 93 195 Projectiles 929 | . . . . . . . . . . 17 . 12 . 30 . . 60 31 35 108 42 . 26 . . 132 8 140 93 195 Explosions 61 | . 8 6 30 . . . . . . . . . . . . . . . . . . 17 . . . . . . . . Melee . | . . . . . . . . . . . . . . . . . . . . . . . . . . . . . . . Knockbacks 107 | . . . . . . . . . . 2 1 1 . 7 . 3 6 1 . 8 5 3 2 . 6 15 4 8 14 21 Impact . | . . . . . . . . . . . . . . . . . . . . . . . . . . . . . . . Kinetic 95 | . . . . . . . . . . 2 1 . . 5 . 3 6 1 . 7 5 3 2 . 5 14 3 7 13 18 Secondary 12 | . . . . . . . . . . . . 1 . 2 . . . . . 1 . . . . 1 1 1 1 1 3 Self-Inflicted Damage 750 | . 213 . 41 . . . . . . . . 247 . . . 21 . . . 111 42 . . . . . . . . 75 Shots 18 | . 7 . 3 . . . . . . . . 3 . . . 1 . . . 2 1 . . . . . . . . 1 Rammed . | . . . . . . . . . . . . . . . . . . . . . . . . . . . . . . . Targets Rammed 2 | . . . . . . . . . . . . . . . . . . . . 2 . . . . . . . . . . Kicked 2 | . . . . . . . . . . . . . . . . . . . . 2 . . . . . . . . . . Crushed . | . . . . . . . . . . . . . . . . . . . . . . . . . . . . . . . Highest Temperature 271 | . 252 11 6 . . . 2 12 . . 107 . . 227 . . . . . . . . . . 3 166 118 271 231 227 Average Temperature 94 | . 114 11 5 . . . 2 12 . . 73 . . 109 . . . . . . . . . . 3 105 67 130 78 89 Received Heat Transfer 4567 | . 222 51 387 . . 162 171 447 . 285 81 306 . 270 . 168 537 207 . 297 138 106 34 . 84 40 8 40 251 275 Siege Activations . | . . . . . . . . . . . . . . . . . . . . . . . . . . . . . . . Martial Activations . | . . . . . . . . . . . . . . . . . . . . . . . . . . . . . . . Shielding Activations . | . . . . . . . . . . . . . . . . . . . . . . . . . . . . . . . Robots Disrupted . | . . . . . . . . . . . . . . . . . . . . . . . . . . . . . . . Combat Hostiles . | . . . . . . . . . . . . . . . . . . . . . . . . . . . . . . . Robots Corrupted 2 | . . . . . . . . . . . . . . . . . . . . 2 . . . . . . . . . . Combat Hostiles . | . . . . . . . . . . . . . . . . . . . . . . . . . . . . . . . Parts Fried 8 | . . . . . . . . . . . . . . . . . . . . 8 . . . . . . . . . . Impact Corruptions 3 | . . . . . . . . . . . . 1 . . . . . . . 2 . . . . . . . . . . Robots Melted . | . . . . . . . . . . . . . . . . . . . . . . . . . . . . . . . Combat Hostiles . | . . . . . . . . . . . . . . . . . . . . . . . . . . . . . . . Parts Melted 3 | . 2 . . . . . . . . . . . . . . . . . . . 1 . . . . . . . . . Heat Transferred 1332 | . 1332 . . . . . . . . . . . . . . . . . . . . . . . . . . . . . Parts Sabotaged . | . . . . . . . . . . . . . . . . . . . . . . . . . . . . . . . Parts Stolen . | . . . . . . . . . . . . . . . . . . . . . . . . . . . . . . . Parts Stripped . | . . . . . . . . . . . . . . . . . . . . . . . . . . . . . . . Power Chain Reactions 2 | . 1 . . . . . . . . . . . . . . . . . . 1 . . . . . . . . . . Alert | -11 -10 -10 -9 -9 -9 -8 -8 -8 -8 -8 -7 -7 -7 -7 -6 -6 -6 -6 -6 -6 -6 -5 -4 -3 -3 -2 -2 -1 -1 -1 ------- Run | Yrd Mat Min Mat Min Exi Min Mat Gar Mat Gar Fac Gar Fac Gar Fac Gar Ext Cet Arc Hub Gar Fac Fac Res Gar Res Qua Acc Gar Acc Maximum Alert Level 5 | . 1 . 2 . . 1 2 4 3 5 3 5 3 5 4 5 5 4 2 5 5 5 4 3 5 5 4 3 5 5 Low Security (%) 12 | 100 91 100 11 100 . 36 34 . . . . . . . . . . . . 16 . . . . . . . . . . Level 1 6 | . 8 . 43 . . 63 39 7 . . . . . . . . . . . 20 . . . . . . . . . . Level 2 9 | . . . 44 . . . 26 19 . 10 . 5 . . . . . . 100 24 . . . . 4 . . 58 . . Level 3 13 | . . . . . . . . 29 100 25 100 24 100 20 . 15 . . . 20 . . . 100 20 . 84 41 18 . Level 4 27 | . . . . . . . . 43 . 59 . 30 . 19 100 18 48 100 . 10 27 28 100 . 27 65 15 . 16 30 Level 5 21 | . . . . . . . . . . 4 . 39 . 60 . 65 30 . . 6 72 3 . . 47 34 . . 64 6 High Security 8 | . . . . . . . . . . . . . . . . . 20 . . . . 68 . . . . . . . 63 Max Security . | . . . . . . . . . . . . . . . . . . . . . . . . . . . . . . . Peak Influence 4566 | . 217 186 581 156 . 340 445 1596 778 1623 995 1955 1030 2391 1255 2456 2208 1418 581 1735 2606 2566 1519 807 2410 2138 1252 1051 2516 4566 Initial 1509 | . . 69 37 156 . . 113 289 778 499 851 689 1026 714 1255 857 1289 1236 541 168 1203 1367 1257 792 590 1355 1197 634 840 1509 Average 1266 | . 97 143 379 121 . 225 271 1052 776 1189 902 1383 1026 1664 1242 1717 1677 1322 529 654 2017 1900 1379 794 1589 1564 967 728 1729 2484 Influence Increases 25590 | . 535 207 1061 . . 490 432 1307 . 1164 254 1266 4 1697 . 1639 1089 439 100 1861 1403 1349 412 15 1820 1021 441 567 1686 3331 Destroy 0b10 Robot/C 14000 | . 300 160 700 . . 360 300 680 . 740 140 700 . 900 . 860 740 240 80 800 760 760 160 . 980 540 160 360 1020 1560 Destroy 0b10 Robot/NC 735 | . 60 . 60 . . . 25 . . . 5 5 . . . . 25 10 . 175 20 35 45 . 10 105 30 35 15 75 Destroy Leader 1842 | . 58 30 164 . . 70 76 30 . 40 30 30 . 50 . 60 90 20 . 206 50 108 48 . 70 124 26 94 100 268 Allied During Kill 707 | . . . . . . . . 27 . 64 . 12 . 190 . 107 32 . . . 92 183 . . . . . . . . Successful Hack 348 | . 10 . 16 . . . 13 35 . . . 7 4 14 . 21 44 8 . 14 14 . 30 . 14 48 21 . 35 . Disable Machine 1185 | . 30 . . . . 15 . . . 15 60 . . 60 . 15 15 90 15 315 15 60 75 15 165 15 105 . 45 60 Anti-Garrison Action 2400 | . . . . . . . . 450 . 250 . 300 . 250 . 400 . . . . 250 . . . 300 . . . 200 . Destroy Structure 2288 | . 77 17 46 . . . 3 55 . 40 19 137 . 128 . 116 38 11 5 306 142 158 54 . 191 174 84 78 136 273 Partial Spotted 165 | . . . 45 . . . . . . . . 30 . . . . 15 . . . 15 . . . . 15 15 . 15 15 Lose Combat Pursuer 1920 | . . . 30 . . 45 15 30 . 15 . 45 . 105 . 60 90 60 . 45 45 45 . . 90 . . . 120 1080 Influence Decreases 21024 | . 358 288 755 316 86 198 279 156 828 309 892 296 939 326 1166 408 1337 1294 972 623 516 1389 1469 737 197 1301 1513 574 221 1281 Entered New Map 16600 | . . 108 59 246 86 . 179 156 818 269 772 296 929 306 1136 368 1167 972 812 313 516 1239 1309 717 197 1055 933 424 211 1007 Time Decay 3404 | . 348 180 386 70 . 198 100 . 10 . 120 . 10 . 30 . 150 302 160 310 . 70 160 20 . 246 130 150 . 254 Lost Part 70 | . 10 . 10 . . . . . . . . . . . . . . 20 . . . . . . . . . . 10 20 Lost Ally 200 | . . . . . . . . . . 40 . . . 20 . 40 20 . . . . 80 . . . . . . . . Purge Threat 750 | . . . 300 . . . . . . . . . . . . . . . . . . . . . . . 450 . . . Squads Dispatched 109 | . 2 . 5 . . . 3 . . . 3 . . . . . 10 3 . 14 . 11 1 . . 6 4 6 . 41 Investigation 19 | . 2 . 4 . . . 2 . . . 2 . . . . . 6 3 . . . . . . . . . . . . Extermination 5 | . . . . . . . . . . . . . . . . . . . . 1 . . . . . 1 . 1 . 2 Reinforcement 16 | . . . 1 . . . . . . . . . . . . . 3 . . 5 . 2 . . . 1 . 2 . 2 Assault 53 | . . . . . . . . . . . . . . . . . 1 . . 2 . 8 1 . . 4 2 1 . 34 Garrison 16 | . . . . . . . 1 . . . 1 . . . . . . . . 6 . 1 . . . . 2 2 . 3 Intercept . | . . . . . . . . . . . . . . . . . . . . . . . . . . . . . . . Searches Triggered . | . . . . . . . . . . . . . . . . . . . . . . . . . . . . . . . Construction Impeded 3 | . . . . . . . . . . . . . . . . . 1 . . 1 . . . . . 1 . . . . Haulers Reinforced 3 | . . . . . . . . . . . . . . . . . . . . . . 2 . . . . . 1 . . Active Scanning Responses . | . . . . . . . . . . . . . . . . . . . . . . . . . . . . . . . Cargo Convoy Interrupts . | . . . . . . . . . . . . . . . . . . . . . . . . . . . . . . . Stealth | -11 -10 -10 -9 -9 -9 -8 -8 -8 -8 -8 -7 -7 -7 -7 -6 -6 -6 -6 -6 -6 -6 -5 -4 -3 -3 -2 -2 -1 -1 -1 --------- Run | Yrd Mat Min Mat Min Exi Min Mat Gar Mat Gar Fac Gar Fac Gar Fac Gar Ext Cet Arc Hub Gar Fac Fac Res Gar Res Qua Acc Gar Acc Distress Signals 27 | . . . 2 . . . 1 . . . . . . . . . 1 2 . 5 2 1 . . . 1 3 4 1 4 Communications Jammed . | . . . . . . . . . . . . . . . . . . . . . . . . . . . . . . . Distress Signals . | . . . . . . . . . . . . . . . . . . . . . . . . . . . . . . . Times Spotted 918 | . 21 8 43 . . 21 20 39 . 34 7 35 . 46 . 40 46 18 9 53 36 62 9 . 41 35 16 31 60 188 Peak Tracking Total 18 | . 4 3 5 . . 5 4 6 . 7 2 7 . 16 . 4 14 5 1 7 7 18 5 . 6 9 4 11 17 17 Tactical Retreats 57 | . . . 2 . . 2 1 1 . 1 . 2 . 4 . 3 4 1 . 2 1 2 . . 4 . . . 2 25 Traps | -11 -10 -10 -9 -9 -9 -8 -8 -8 -8 -8 -7 -7 -7 -7 -6 -6 -6 -6 -6 -6 -6 -5 -4 -3 -3 -2 -2 -1 -1 -1 ------- Run | Yrd Mat Min Mat Min Exi Min Mat Gar Mat Gar Fac Gar Fac Gar Fac Gar Ext Cet Arc Hub Gar Fac Fac Res Gar Res Qua Acc Gar Acc Traps Triggered 65 | . 4 . . . . . 1 10 . 5 . 8 . 6 . 7 1 . . 3 5 . 1 . 6 . . . 6 2 Indirectly 2 | . . . . . . . . . . . . . . . . . . . . 2 . . . . . . . . . . Trap Hack Attempts . | . . . . . . . . . . . . . . . . . . . . . . . . . . . . . . . Triggered . | . . . . . . . . . . . . . . . . . . . . . . . . . . . . . . . Disarmed 1 | . . . . . . . . . . . . . . . . . 1 . . . . . . . . . . . . . Reprogrammed . | . . . . . . . . . . . . . . . . . . . . . . . . . . . . . . . Reused . | . . . . . . . . . . . . . . . . . . . . . . . . . . . . . . . Traps Extracted . | . . . . . . . . . . . . . . . . . . . . . . . . . . . . . . . Installed . | . . . . . . . . . . . . . . . . . . . . . . . . . . . . . . . Triggered . | . . . . . . . . . . . . . . . . . . . . . . . . . . . . . . . Machines | -11 -10 -10 -9 -9 -9 -8 -8 -8 -8 -8 -7 -7 -7 -7 -6 -6 -6 -6 -6 -6 -6 -5 -4 -3 -3 -2 -2 -1 -1 -1 ---------- Run | Yrd Mat Min Mat Min Exi Min Mat Gar Mat Gar Fac Gar Fac Gar Fac Gar Ext Cet Arc Hub Gar Fac Fac Res Gar Res Qua Acc Gar Acc Machines Disabled 137 | . 2 . . . . 1 . 9 . 5 4 9 . 9 . 11 2 7 1 21 9 4 6 1 18 1 7 . 6 4 Max in Single Turn 8 | . 1 . . . . 1 . 1 . 1 2 2 . 1 . 2 1 2 1 8 1 2 1 1 2 1 2 . 1 1 Garrison Relay 37 | . . . . . . . . 8 . 4 . 3 . 4 . 6 . . . . 4 . . . 5 . . . 3 . Phase Generator 4 | . . . . . . . . . . . . 1 . . . 1 . . . . 1 . . . 1 . . . . . Network Hub 2 | . . . . . . . . . . . . . . . . . . . . 2 . . . . . . . . . . Machines Repaired . | . . . . . . . . . . . . . . . . . . . . . . . . . . . . . . . Machines Dismantled . | . . . . . . . . . . . . . . . . . . . . . . . . . . . . . . . Machines Sabotaged . | . . . . . . . . . . . . . . . . . . . . . . . . . . . . . . . Overloaded Fab Kills . | . . . . . . . . . . . . . . . . . . . . . . . . . . . . . . . Hacking | -11 -10 -10 -9 -9 -9 -8 -8 -8 -8 -8 -7 -7 -7 -7 -6 -6 -6 -6 -6 -6 -6 -5 -4 -3 -3 -2 -2 -1 -1 -1 --------- Run | Yrd Mat Min Mat Min Exi Min Mat Gar Mat Gar Fac Gar Fac Gar Fac Gar Ext Cet Arc Hub Gar Fac Fac Res Gar Res Qua Acc Gar Acc Machines Accessed 72 | . 6 . 8 1 . 1 3 4 1 1 3 1 2 2 1 2 10 3 1 3 2 1 3 1 1 1 4 3 3 . Terminals 55 | . 5 . 5 . . 1 2 4 . 1 2 1 1 2 . 2 10 3 . 2 2 1 2 . 1 . 3 2 3 . Fabricators . | . . . . . . . . . . . . . . . . . . . . . . . . . . . . . . . Repair Stations 2 | . . . 2 . . . . . . . . . . . . . . . . . . . . . . . . . . . Recycling Units 1 | . 1 . . . . . . . . . . . . . . . . . . . . . . . . . . . . . Scanalyzers 3 | . . . 1 . . . . . . . . . . . . . . . . . . . 1 . . 1 . . . . Garrison Access 9 | . . . . . . . 1 . 1 . 1 . 1 . 1 . . . . 1 . . . 1 . . 1 1 . . Total Hacks 229 | . 19 . 31 1 . 3 12 7 1 2 8 1 3 5 1 3 28 14 25 4 4 1 13 1 4 3 21 6 8 . Successful 114 | . 8 . 16 1 . . 9 3 1 . 1 1 3 1 1 2 10 2 25 4 2 1 4 1 1 2 9 3 3 . Failed 114 | . 11 . 15 . . 3 3 4 . 2 7 . . 4 . 1 18 12 . . 2 . 8 . 3 1 12 3 5 . Catastrophic 23 | . 3 . 1 . . . . . . 2 1 . . 1 . . 2 4 . . . . 4 . . . 2 1 2 . Database Lockouts 1 | . . . . . . . . . . . . . . . . . . . . . . . 1 . . . . . . . Manual . | . . . . . . . . . . . . . . . . . . . . . . . . . . . . . . . Terminals 171 | . 18 . 16 . . 3 11 7 . 2 7 1 2 5 . 3 28 14 . 3 4 1 9 . 4 . 20 5 8 . Fabricators . | . . . . . . . . . . . . . . . . . . . . . . . . . . . . . . . Repair Stations 11 | . . . 11 . . . . . . . . . . . . . . . . . . . . . . . . . . . Recycling Units 1 | . 1 . . . . . . . . . . . . . . . . . . . . . . . . . . . . . Scanalyzers 11 | . . . 4 . . . . . . . . . . . . . . . . . . . 4 . . 3 . . . . Garrison Access 9 | . . . . . . . 1 . 1 . 1 . 1 . 1 . . . . 1 . . . 1 . . 1 1 . . Terminal Hacks 88 | . 7 . 4 1 . . 8 3 . . . 1 2 1 . 2 10 2 25 3 2 1 2 . 1 . 8 2 3 . Record 37 | . . . . . . . 4 . . . . . . . . . . 2 25 1 . 1 . . . . 2 2 . . Robot Analysis 1 | . . . 1 . . . . . . . . . . . . . . . . . . . . . . . . . . . Prototype ID Bank 9 | . 1 . . . . . 1 . . . . . . . . . 3 . . 1 . . 2 . . . 1 . . . Open Door 7 | . . . . 1 . . . 1 . . . 1 . . . 1 1 . . . 1 . . . . . . . 1 . Level Access Points 1 | . . . . . . . . . . . . . . . . . 1 . . . . . . . . . . . . . Branch Access Points 1 | . . . . . . . . . . . . . . . . . . . . . . . . . . . 1 . . . Emergency Access Points 7 | . 1 . . . . . . 1 . . . . . 1 . 1 . . . 1 1 . . . 1 . . . . . Terminal Index 1 | . 1 . . . . . . . . . . . . . . . . . . . . . . . . . . . . . Scanalyzer Index 1 | . . . 1 . . . . . . . . . . . . . . . . . . . . . . . . . . . Alert Level 3 | . 1 . . . . . 1 . . . . . . . . . 1 . . . . . . . . . . . . . Unreport Threat 5 | . . . 2 . . . . . . . . . . . . . . . . . . . . . . . 3 . . . Locate Traps 2 | . . . . . . . . . . . . . 1 . . . 1 . . . . . . . . . . . . . Disarm Traps 1 | . . . . . . . . . . . . . . . . . 1 . . . . . . . . . . . . . Dispatch Records 2 | . 1 . . . . . . . . . . . 1 . . . . . . . . . . . . . . . . . Patrol Status 1 | . . . . . . . . . . . . . . . . . 1 . . . . . . . . . . . . . Reinforcement Status 1 | . . . . . . . . . . . . . . . . . 1 . . . . . . . . . . . . . Assault Status 1 | . 1 . . . . . . . . . . . . . . . . . . . . . . . . . . . . . Zone Layout 4 | . 1 . . . . . 2 . . . . . . . . . . . . . . . . . . . 1 . . . Garrison Registry 1 | . . . . . . . . . . . . . . . . . . . . . . . . . . . . . 1 . Patrol Navigation 2 | . . . . . . . . 1 . . . . . . . . . . . . . . . . . . . . 1 . Fabricator Hacks . | . . . . . . . . . . . . . . . . . . . . . . . . . . . . . . . Repair Station Hacks 8 | . . . 8 . . . . . . . . . . . . . . . . . . . . . . . . . . . Scan Component 4 | . . . 4 . . . . . . . . . . . . . . . . . . . . . . . . . . . Repair 4 | . . . 4 . . . . . . . . . . . . . . . . . . . . . . . . . . . Recycling Unit Hacks 1 | . 1 . . . . . . . . . . . . . . . . . . . . . . . . . . . . . Report Inventory 1 | . 1 . . . . . . . . . . . . . . . . . . . . . . . . . . . . . Scanalyzer 8 | . . . 4 . . . . . . . . . . . . . . . . . . . 2 . . 2 . . . . Retrieve Study 8 | . . . 4 . . . . . . . . . . . . . . . . . . . 2 . . 2 . . . . Garrison Access Hacks 9 | . . . . . . . 1 . 1 . 1 . 1 . 1 . . . . 1 . . . 1 . . 1 1 . . Unlock Access 9 | . . . . . . . 1 . 1 . 1 . 1 . 1 . . . . 1 . . . 1 . . 1 1 . . Unauthorized Hacks . | . . . . . . . . . . . . . . . . . . . . . . . . . . . . . . . Terminals . | . . . . . . . . . . . . . . . . . . . . . . . . . . . . . . . Fabricators . | . . . . . . . . . . . . . . . . . . . . . . . . . . . . . . . Repair Stations . | . . . . . . . . . . . . . . . . . . . . . . . . . . . . . . . Recycling Units . | . . . . . . . . . . . . . . . . . . . . . . . . . . . . . . . Scanalyzers . | . . . . . . . . . . . . . . . . . . . . . . . . . . . . . . . Garrison Access . | . . . . . . . . . . . . . . . . . . . . . . . . . . . . . . . Data Cores Recovered 4 | . . . 1 . . . . . . . . . . . . . . . . . . . . . . . 3 . . . Used 2 | . . . 1 . . . . . . . . . . . . . . . . . . . . . . . 1 . . . Hacking Detections 42 | . 4 . 6 . . 1 2 4 1 1 2 . . 1 1 1 7 3 . . . . 1 . . 1 2 2 2 . Full Trace Events 26 | . 3 . 5 . . 1 2 1 . 1 2 . . 1 . . 6 3 . . . . . . . . . . 1 . Feedback Events 2 | . . . 1 . . . . . . . 1 . . . . . . . . . . . . . . . . . . . Corruption 2 | . . . 1 . . . . . . . 1 . . . . . . . . . . . . . . . . . . . Feedback Blocked . | . . . . . . . . . . . . . . . . . . . . . . . . . . . . . . . Robot Schematics Acquired . | . . . . . . . . . . . . . . . . . . . . . . . . . . . . . . . Robots Built . | . . . . . . . . . . . . . . . . . . . . . . . . . . . . . . . Authchips . | . . . . . . . . . . . . . . . . . . . . . . . . . . . . . . . Time . | . . . . . . . . . . . . . . . . . . . . . . . . . . . . . . . Total Robot Build Rating . | . . . . . . . . . . . . . . . . . . . . . . . . . . . . . . . Part Schematics Acquired . | . . . . . . . . . . . . . . . . . . . . . . . . . . . . . . . Parts Built . | . . . . . . . . . . . . . . . . . . . . . . . . . . . . . . . Authchips . | . . . . . . . . . . . . . . . . . . . . . . . . . . . . . . . Time . | . . . . . . . . . . . . . . . . . . . . . . . . . . . . . . . Total Part Build Rating . | . . . . . . . . . . . . . . . . . . . . . . . . . . . . . . . Part Studies Acquired 8 | . . . 4 . . . . . . . . . . . . . . . . . . . 2 . . 2 . . . . Parts Repaired 4 | . . . 4 . . . . . . . . . . . . . . . . . . . . . . . . . . . Time 128 | . . . 128 . . . . . . . . . . . . . . . . . . . . . . . . . . . Parts Recycled . | . . . . . . . . . . . . . . . . . . . . . . . . . . . . . . . Recycled Matter . | . . . . . . . . . . . . . . . . . . . . . . . . . . . . . . . Retrieved Matter . | . . . . . . . . . . . . . . . . . . . . . . . . . . . . . . . Retrieved Components . | . . . . . . . . . . . . . . . . . . . . . . . . . . . . . . . Parts Scanalyzed . | . . . . . . . . . . . . . . . . . . . . . . . . . . . . . . . Part Schematics Acquired . | . . . . . . . . . . . . . . . . . . . . . . . . . . . . . . . Parts Damaged . | . . . . . . . . . . . . . . . . . . . . . . . . . . . . . . . Bothacking | -11 -10 -10 -9 -9 -9 -8 -8 -8 -8 -8 -7 -7 -7 -7 -6 -6 -6 -6 -6 -6 -6 -5 -4 -3 -3 -2 -2 -1 -1 -1 ------------ Run | Yrd Mat Min Mat Min Exi Min Mat Gar Mat Gar Fac Gar Fac Gar Fac Gar Ext Cet Arc Hub Gar Fac Fac Res Gar Res Qua Acc Gar Acc Used RIF Installer 10 | . . . . . . . . 1 . 1 . 2 . 1 . 2 . . . . 1 . . . 1 . . . 1 . Coupler Efficiency 1 | . . . . . . . . . . . . . . . . . . . . . 1 . . . . . . . . . Hotswap 1 | . . . . . . . . . . . . 1 . . . . . . . . . . . . . . . . . . Command Fork 1 | . . . . . . . . . . . . . . . . 1 . . . . . . . . . . . . . . Zone Cloak 1 | . . . . . . . . . . 1 . . . . . . . . . . . . . . . . . . . . Structural Interface 1 | . . . . . . . . . . . . . . . . 1 . . . . . . . . . . . . . . Autooverride 1 | . . . . . . . . . . . . 1 . . . . . . . . . . . . . . . . . . Autoassimilate 2 | . . . . . . . . . . . . . . 1 . . . . . . . . . . 1 . . . . . Crosswire 1 | . . . . . . . . . . . . . . . . . . . . . . . . . . . . . 1 . Robots Hacked . | . . . . . . . . . . . . . . . . . . . . . . . . . . . . . . . Non-combat . | . . . . . . . . . . . . . . . . . . . . . . . . . . . . . . . Combat . | . . . . . . . . . . . . . . . . . . . . . . . . . . . . . . . Robot Hacks Applied . | . . . . . . . . . . . . . . . . . . . . . . . . . . . . . . . Relay Couplers Released 65 | . . . . . . . . 13 . 7 . 6 . 8 . 9 . . . . 7 . . . 10 . . . 5 . Machine Destruction 65 | . . . . . . . . 13 . 7 . 6 . 8 . 9 . . . . 7 . . . 10 . . . 5 . Fabnet Peak Effective % . | . . . . . . . . . . . . . . . . . . . . . . . . . . . . . . . Robots Rewired . | . . . . . . . . . . . . . . . . . . . . . . . . . . . . . . . Allies Hacked 1 | . . . . . . . . . . . . . . . . 1 . . . . . . . . . . . . . . Hacks Repelled . | . . . . . . . . . . . . . . . . . . . . . . . . . . . . . . . Allies | -11 -10 -10 -9 -9 -9 -8 -8 -8 -8 -8 -7 -7 -7 -7 -6 -6 -6 -6 -6 -6 -6 -5 -4 -3 -3 -2 -2 -1 -1 -1 -------- Run | Yrd Mat Min Mat Min Exi Min Mat Gar Mat Gar Fac Gar Fac Gar Fac Gar Ext Cet Arc Hub Gar Fac Fac Res Gar Res Qua Acc Gar Acc Total Allies 17 | . . 2 . . . . . 2 . . . 2 . 4 . 2 1 . . . 4 . . . . . . . . . Largest Group 5 | . . 2 . . . . . 2 2 2 . 2 2 5 . 2 1 . . . 4 4 . . . . . . . . Highest-Rated Group 265 | . . 49 . . . . . 78 78 78 . 157 157 265 . 97 20 . . . 244 244 . . . . . . . . Highest-Rated Ally 95 | . . 31 . . . . . 39 39 39 . 95 95 95 . 51 20 . . . 80 80 . . . . . . . . Total Orders . | . . . . . . . . . . . . . . . . . . . . . . . . . . . . . . . Ally Attacks 169 | . . . . . . . . 10 . 43 . 1 . 46 . 27 1 . . . 14 27 . . . . . . . . Total Damage 4024 | . . . . . . . . 142 . 290 . 53 . 1687 . 665 . . . . 533 654 . . . . . . . . Kills 29 | . . . . . . . . 1 . 6 . . . 16 . 4 . . . . 1 1 . . . . . . . . Allies Corrupted . | . . . . . . . . . . . . . . . . . . . . . . . . . . . . . . . Allies Melted . | . . . . . . . . . . . . . . . . . . . . . . . . . . . . . . . Intel | -11 -10 -10 -9 -9 -9 -8 -8 -8 -8 -8 -7 -7 -7 -7 -6 -6 -6 -6 -6 -6 -6 -5 -4 -3 -3 -2 -2 -1 -1 -1 ------- Run | Yrd Mat Min Mat Min Exi Min Mat Gar Mat Gar Fac Gar Fac Gar Fac Gar Ext Cet Arc Hub Gar Fac Fac Res Gar Res Qua Acc Gar Acc Active Infowar (turns) . | . . . . . . . . . . . . . . . . . . . . . . . . . . . . . . . Robot Analysis Total 1 | . . . 1 . . . . . . . . . . . . . . . . . . . . . . . . . . . Derelict Logs Recovered 4 | . . 1 . 3 . . . . . . . . . . . . . . . . . . . . . . . . . . Drone Launches . | . . . . . . . . . . . . . . . . . . . . . . . . . . . . . . . Drone Recoveries . | . . . . . . . . . . . . . . . . . . . . . . . . . . . . . . . Exploration | -11 -10 -10 -9 -9 -9 -8 -8 -8 -8 -8 -7 -7 -7 -7 -6 -6 -6 -6 -6 -6 -6 -5 -4 -3 -3 -2 -2 -1 -1 -1 ------------- Run | Yrd Mat Min Mat Min Exi Min Mat Gar Mat Gar Fac Gar Fac Gar Fac Gar Ext Cet Arc Hub Gar Fac Fac Res Gar Res Qua Acc Gar Acc Turns Passed 15260 | 73 843 371 914 155 199 416 211 905 23 537 241 873 26 700 68 863 388 678 338 689 646 438 339 47 798 526 271 316 863 1505 Spaces Moved 22496 | 56 772 789 1005 467 610 783 231 1343 60 777 372 1426 75 973 222 1461 563 622 225 379 1090 844 706 131 1388 699 582 445 1253 2147 Core 6 | 5 1 . . . . . . . . . . . . . . . . . . . . . . . . . . . . . Treads 1 | 1 . . . . . . . . . . . . . . . . . . . . . . . . . . . . . . Legs 980 | 50 298 . . . . . . . . . . . . . . . . 148 225 259 . . . . . . . . . . Wheels . | . . . . . . . . . . . . . . . . . . . . . . . . . . . . . . . Hover 18 | . 18 . . . . . . . . . . . . . . . . . . . . . . . . . . . . . Flight 21491 | . 455 789 1005 467 610 783 231 1343 60 777 372 1426 75 973 222 1461 563 474 . 120 1090 844 706 131 1388 699 582 445 1253 2147 Fastest Speed 23 | 50 37 37 32 32 32 32 32 32 32 32 29 29 29 29 29 26 26 26 120 23 23 24 34 34 29 31 29 29 29 29 Average Speed 34 | 114 69 37 32 32 32 32 32 32 32 32 30 29 29 29 29 26 26 49 120 90 23 27 34 34 31 31 29 29 30 36 Slowest Speed 160 | 160 120 37 37 32 32 32 32 32 32 32 32 104 29 104 29 29 26 120 120 125 24 34 117 34 34 35 32 29 35 39 Overloaded Moves . | . . . . . . . . . . . . . . . . . . . . . . . . . . . . . . . Propulsion Burnouts . | . . . . . . . . . . . . . . . . . . . . . . . . . . . . . . . Robots Hopped 100 | . . 7 11 1 3 10 1 2 . . 2 . . 1 2 . 11 . . 2 2 . . . 1 5 . 6 10 23 Potential Cave-ins 6 | . . . . . . . . . . . . . . . . . . . . 3 . . . . . . . . . 3 Cave-ins Triggered . | . . . . . . . . . . . . . . . . . . . . . . . . . . . . . . . Exploration Rate (%) 56 | 4 75 91 76 76 92 94 19 98 4 76 7 86 3 96 5 95 72 96 98 38 99 22 19 4 92 15 45 12 91 56 Regions Visited 30 Branch Regions 9 Pre-discovered Areas 2 | . . 1 . 1 . . . . . . . . . . . . . . . . . . . . . . . . . . Known Exits Taken 21 | . 1 1 1 1 1 1 1 . 1 . 1 . 1 . 1 . 1 1 1 1 . 1 1 1 . 1 1 1 . . Unknown Exits Taken 1 | 1 . . . . . . . . . . . . . . . . . . . . . . . . . . . . . . Scrap Searched 3 | . . 1 . 1 . 1 . . . . . . . . . . . . . . . . . . . . . . . . Spaces Dug 18 | . . . . . . . . . . . . . . . . . . . . . 7 . . . . . . 2 . 9 Terrain Destroyed 1788 | . 90 20 55 . . . . . . 5 26 160 . 10 . 185 41 13 10 441 164 104 28 . 143 62 42 26 55 108 Melee . | . . . . . . . . . . . . . . . . . . . . . . . . . . . . . . . Projectile 756 | . . . . . . . . . . 5 4 10 . 10 . 16 41 13 10 113 104 80 28 . 68 62 42 26 55 69 AOE 1030 | . 90 20 55 . . . . . . . 22 150 . . . 169 . . . 328 60 24 . . 74 . . . . 38 Terrain Rammed . | . . . . . . . . . . . . . . . . . . . . . . . . . . . . . . . Walls Destroyed . | . . . . . . . . . . . . . . . . . . . . . . . . . . . . . . . Machines Disabled . | . . . . . . . . . . . . . . . . . . . . . . . . . . . . . . . Actions | -11 -10 -10 -9 -9 -9 -8 -8 -8 -8 -8 -7 -7 -7 -7 -6 -6 -6 -6 -6 -6 -6 -5 -4 -3 -3 -2 -2 -1 -1 -1 --------- Run | Yrd Mat Min Mat Min Exi Min Mat Gar Mat Gar Fac Gar Fac Gar Fac Gar Ext Cet Arc Hub Gar Fac Fac Res Gar Res Qua Acc Gar Acc Total 26865 | 62 969 831 1410 471 610 872 304 1676 64 957 467 1739 79 1261 224 1775 639 903 280 549 1337 941 754 132 1565 857 627 507 1490 2513 Wait 1439 | . 87 4 193 . . 47 28 101 1 33 57 101 4 56 . 88 4 209 32 3 76 28 11 . 21 65 15 7 19 149 Move 22280 | 55 771 774 983 464 603 762 229 1338 60 775 368 1425 75 970 218 1459 542 621 224 375 1086 843 705 131 1385 688 581 434 1234 2102 Hop 92 | . . 7 10 1 3 10 1 2 . . 2 . . 1 2 . 9 . . 2 1 . . . 1 5 . 5 8 22 Pick Up 25 | . 3 1 3 1 1 . 1 4 1 . 3 1 . 1 . . . . . 1 1 . 1 . . . . . . 2 Fast Attach 101 | 6 11 . 14 2 1 3 . 2 . . 1 3 . 3 1 1 . 7 . 7 7 5 2 . 8 6 2 . 3 6 Attach 10 | . 1 . . . . . . 1 . 1 . 1 . 4 . . . 1 . . . 1 . . . . . . . . Detach 6 | . . . 1 . . . . . . . . . . 3 . . . 1 . . . 1 . . . . . . . . Swap 72 | . 5 1 5 . . 1 . 17 1 5 1 9 . 2 1 6 . 3 . 2 2 1 3 . 2 1 1 . 2 1 Drop 122 | 1 9 2 14 3 2 2 1 7 1 . 2 6 . 6 2 2 . 8 . 9 6 7 4 . 7 7 3 . 3 8 Fire 1323 | . 73 34 124 . . 30 31 54 . 46 13 66 . 66 . 77 64 37 5 69 58 45 20 1 75 51 21 45 91 127 Melee 22 | . . . . . . . . 19 . 2 . 1 . . . . . . . . . . . . . . . . . . Ram . | . . . . . . . . . . . . . . . . . . . . . . . . . . . . . . . Kick 2 | . . . . . . . . . . . . . . . . . . . . 2 . . . . . . . . . . Crush . | . . . . . . . . . . . . . . . . . . . . . . . . . . . . . . . Escape Stasis 553 | . . . . . . . . 78 . 74 . 75 . 97 . 86 . . . 4 53 . . . 26 . . . 48 12 Rewire . | . . . . . . . . . . . . . . . . . . . . . . . . . . . . . . . Trap . | . . . . . . . . . . . . . . . . . . . . . . . . . . . . . . . Miscellaneous 818 | . 9 8 63 . . 17 13 53 . 21 20 51 . 52 . 56 20 16 19 75 47 10 8 . 40 34 4 16 82 84 Route ------- -11/Scrapyard -10/Materials (discovered 4 exits: *Mat x2 / *Min / *Sub) -10/Mines (discovered 2 exits: *Mat x2) -9/Materials (discovered 3 exits: *Mat x2 / *Min) -9/Mines (discovered 2 exits: *Mat / *Exi) -9/Exiles (discovered 2 exits: *Min x2) -8/Mines (discovered 2 exits: *Mat x2) -8/Materials -8/Garrison (discovered 3 exits: *Mat x3) -8/Materials -8/Garrison (discovered 3 exits: *Fac x3) -7/Factory (discovered 2 exits: *Low / Gar) -7/Garrison (discovered 3 exits: *Fac x3) -7/Factory -7/Garrison (discovered 3 exits: *Fac x3) -6/Factory -6/Garrison (discovered 3 exits: *Ext x3) -6/Extension (discovered 3 exits: *Fac x2 / *Cet) -6/Cetus (discovered 3 exits: *Fac x2 / *Arc) -6/Archives (discovered 3 exits: *Fac / *Hub x2) -6/Hub_04(d) (discovered 2 exits: *Fac / Gar) -6/Garrison (discovered 3 exits: *Fac x3) -5/Factory -4/Factory -3/Research -3/Garrison (discovered 3 exits: *Res x3) -2/Research -2/Quarantine (discovered 2 exits: *Acc / Gar) -1/Access -1/Garrison (discovered 3 exits: *Acc x3) -1/Access History --------- Turn | Location | Event 1 | -11/Scrapyard | Upgraded with Propulsion slot (x1) 1 | -11/Scrapyard | Upgraded with Utility slot (x1) 1 | -11/Scrapyard | Upgraded with Weapon slot (x1) 10 | -11/Scrapyard | Discovered new exit (range 15) 74 | -11/Scrapyard | Entered Materials 310 | -10/Materials | Build established: Mutant 317 | -10/Materials | Discovered new exit (range 15) 682 | -10/Materials | Reached level 2 706 | -10/Materials | Core integrity fell below 50% 822 | -10/Materials | Discovered new exit (range 5) 824 | -10/Materials | Identified exit to Materials 840 | -10/Materials | Discovered new exit (range 12) 844 | -10/Materials | Identified exit to Mines 867 | -10/Materials | Discovered new exit (range 6) 869 | -10/Materials | Identified exit to Subcaves 917 | -10/Materials | Entered Mines 989 | -10/Mines | Reached level 3 1059 | -10/Mines | Upgraded with Utility slot (x1) 1112 | -10/Mines | Learned location of Storage (-7) 1117 | -10/Mines | Discovered exit to Materials (range 6) 1199 | -10/Mines | Discovered exit to Materials (range 5) 1288 | -10/Mines | Entered Materials 1289 | -9/Materials | Core integrity fell below 50% 1290 | -9/Materials | Reached level 4 1400 | -9/Materials | Reached level 5 1478 | -9/Materials | Repaired Imp. Heat Sink 1487 | -9/Materials | Discovered new exit (range 17) 1590 | -9/Materials | Build established: Sprinter 1753 | -9/Materials | Reached level 6 1849 | -9/Materials | Discovered new exit (range 9) 1852 | -9/Materials | Identified exit to Materials 1887 | -9/Materials | Repaired VTOL Module+ 1915 | -9/Materials | Repaired Lgt. Assault Rifle+ 1948 | -9/Materials | Repaired VTOL Module+ 2124 | -9/Materials | Reached level 7 2169 | -9/Materials | Discovered exit to Materials (range 10) 2202 | -9/Materials | Identified exit to Mines 2202 | -9/Materials | Entered Mines 2207 | -9/Mines | Learned location of 1 exit from Proximity Caves 2209 | -9/Mines | Deemed a non-threat by the Exiles lab entrance 2210 | -9/Mines | Discovered new exit (range 5) 2211 | -9/Mines | Identified exit to Exiles 2234 | -9/Mines | Found the Drone Emporium 2235 | -9/Mines | Learned Materials security intel 2237 | -9/Mines | Found Prototype Device 2237 | -9/Mines | Identified Thief Drone Bay 2261 | -9/Mines | Received a Rocket Launcher from a helpful Derelict 2310 | -9/Mines | Discovered exit to Materials (range 5) 2313 | -9/Mines | Learned location of 1 exit from Lower Caves 2357 | -9/Mines | Entered Exiles 2357 | -9/Exiles | Found Exiles lab destroyed 2362 | -9/Exiles | Discovered new exit (range 15) 2367 | -9/Exiles | Identified exit to Mines 2442 | -9/Exiles | Discovered exit to Mines (range 17) 2446 | -9/Exiles | Build established: Scout 2556 | -9/Exiles | Entered Mines 2563 | -8/Mines | Reached level 8 2584 | -8/Mines | Upgraded with Weapon slot (x1) 2635 | -8/Mines | Discovered exit to Materials (range 9) 2759 | -8/Mines | Reached level 9 2855 | -8/Mines | Discovered exit to Materials (range 13) 2972 | -8/Mines | Entered Materials 2974 | -8/Materials | Reached level 10 3065 | -8/Materials | Garrison activated, responded to threat 3086 | -8/Materials | Reached level 11 3152 | -8/Materials | Destroyed 10 combat bots 3183 | -8/Materials | Identified exit to Garrison 3183 | -8/Materials | Entered Garrison 3187 | -8/Garrison | Installed Relay Interface Framework 3235 | -8/Garrison | Reached level 12 3276 | -8/Garrison | Garrison Relay disabled 3278 | -8/Garrison | Upgraded with Weapon slot (x1) 3293 | -8/Garrison | Triggered checkpoint 3341 | -8/Garrison | Triggered checkpoint 3429 | -8/Garrison | Triggered checkpoint 3471 | -8/Garrison | Triggered checkpoint 3507 | -8/Garrison | Discovered new exit (range 14) 3511 | -8/Garrison | Identified exit to Materials 3524 | -8/Garrison | Garrison Relay disabled 3531 | -8/Garrison | Triggered checkpoint 3534 | -8/Garrison | Reached level 13 3605 | -8/Garrison | Discovered exit to Materials (range 17) 3624 | -8/Garrison | Garrison Relay disabled 3635 | -8/Garrison | Triggered checkpoint 3642 | -8/Garrison | Rescued a captive Derelict 3642 | -8/Garrison | Rescued a captive Derelict 3778 | -8/Garrison | Garrison Relay disabled 3782 | -8/Garrison | Garrison Relay disabled 3785 | -8/Garrison | Garrison Relay disabled 3790 | -8/Garrison | Garrison Relay disabled 3793 | -8/Garrison | Triggered checkpoint 3812 | -8/Garrison | Garrison Relay disabled 3828 | -8/Garrison | Discovered exit to Materials (range 9) 4088 | -8/Garrison | Entered Materials 4088 | -8/Materials | Accompanied by 2 allies 4110 | -8/Materials | Identified exit to Garrison 4111 | -8/Materials | Entered Garrison 4111 | -8/Garrison | Accompanied by 2 allies 4123 | -8/Garrison | Triggered checkpoint 4155 | -8/Garrison | Triggered checkpoint 4167 | -8/Garrison | Triggered checkpoint 4178 | -8/Garrison | Triggered checkpoint 4189 | -8/Garrison | Reached level 14 4232 | -8/Garrison | Upgraded with Utility slot (x1) 4250 | -8/Garrison | Destroyed 16 combat bots 4289 | -8/Garrison | Triggered checkpoint 4332 | -8/Garrison | Garrison Relay disabled 4341 | -8/Garrison | Discovered new exit (range 9) 4344 | -8/Garrison | Identified exit to Factory 4391 | -8/Garrison | Triggered checkpoint 4416 | -8/Garrison | Garrison Relay disabled 4433 | -8/Garrison | Discovered exit to Factory (range 17) 4499 | -8/Garrison | Triggered checkpoint 4507 | -8/Garrison | Garrison Relay disabled 4520 | -8/Garrison | Expanded RIF knowledge: Zone Cloak 4552 | -8/Garrison | Discovered exit to Factory (range 12) 4595 | -8/Garrison | Garrison Relay disabled 4599 | -8/Garrison | Triggered checkpoint 4648 | -8/Garrison | Entered Factory 4650 | -7/Factory | Reached level 15 4651 | -7/Factory | Upgraded with Propulsion slot (x1) 4802 | -7/Factory | Discovered new exit (range 15) 4809 | -7/Factory | Identified exit to Lower Caves 4852 | -7/Factory | Garrison activated, responded to threat 4889 | -7/Factory | Identified exit to Garrison 4889 | -7/Factory | Entered Garrison 4917 | -7/Garrison | Expanded RIF knowledge: Hotswap 4935 | -7/Garrison | Triggered checkpoint 4935 | -7/Garrison | Reached level 16 4938 | -7/Garrison | Upgraded with Utility slot (x1) 4959 | -7/Garrison | Triggered checkpoint 4985 | -7/Garrison | Discovered new exit (range 13) 4989 | -7/Garrison | Identified exit to Factory 4997 | -7/Garrison | Triggered checkpoint 5125 | -7/Garrison | Triggered checkpoint 5152 | -7/Garrison | Garrison Relay disabled 5197 | -7/Garrison | Triggered checkpoint 5245 | -7/Garrison | Triggered checkpoint 5288 | -7/Garrison | Phase Generator disabled 5288 | -7/Garrison | Discovered exit to Factory (range 13) 5387 | -7/Garrison | Triggered checkpoint 5420 | -7/Garrison | Discovered exit to Factory (range 12) 5421 | -7/Garrison | Found embedded Infiltrators 5460 | -7/Garrison | Garrison Relay disabled 5496 | -7/Garrison | Garrison Relay disabled 5496 | -7/Garrison | Reached level 17 5621 | -7/Garrison | Expanded RIF knowledge: Autooverride 5762 | -7/Garrison | Entered Factory 5762 | -7/Factory | Accompanied by 2 allies 5784 | -7/Factory | Identified exit to Garrison 5788 | -7/Factory | Entered Garrison 5788 | -7/Garrison | Accompanied by 2 allies 5834 | -7/Garrison | Triggered checkpoint 5867 | -7/Garrison | Garrison Relay disabled 5955 | -7/Garrison | Core integrity fell below 50% 5985 | -7/Garrison | Destroyed 11 combat bots 6010 | -7/Garrison | Triggered checkpoint 6038 | -7/Garrison | Triggered checkpoint 6066 | -7/Garrison | Triggered checkpoint 6088 | -7/Garrison | Triggered checkpoint 6104 | -7/Garrison | Garrison Relay disabled 6109 | -7/Garrison | Found embedded Infiltrators 6126 | -7/Garrison | Discovered new exit (range 14) 6130 | -7/Garrison | Identified exit to Factory 6209 | -7/Garrison | Garrison Relay disabled 6209 | -7/Garrison | Reached level 18 6211 | -7/Garrison | Upgraded with Utility slot (x1) 6216 | -7/Garrison | Triggered checkpoint 6319 | -7/Garrison | Rescued a captive Derelict 6320 | -7/Garrison | Rescued a captive Derelict 6332 | -7/Garrison | Expanded RIF knowledge: Autoassimilate 6334 | -7/Garrison | Discovered exit to Factory (range 3) 6446 | -7/Garrison | Triggered checkpoint 6460 | -7/Garrison | Garrison Relay disabled 6477 | -7/Garrison | Discovered exit to Factory (range 17) 6488 | -7/Garrison | Entered Factory 6552 | -6/Factory | Build established: Scavenger-Scout 6556 | -6/Factory | Identified exit to Garrison 6556 | -6/Factory | Entered Garrison 6594 | -6/Garrison | Triggered checkpoint 6610 | -6/Garrison | Reached level 19 6614 | -6/Garrison | Upgraded with Propulsion slot (x1) 6648 | -6/Garrison | Rescued a captive Derelict 6650 | -6/Garrison | Rescued a captive Derelict 6661 | -6/Garrison | Garrison Relay disabled 6679 | -6/Garrison | Triggered checkpoint 6758 | -6/Garrison | Destroyed 11 combat bots 6764 | -6/Garrison | Triggered checkpoint 6786 | -6/Garrison | Expanded RIF knowledge: Structural Interface 6807 | -6/Garrison | Expanded RIF knowledge: Command Fork 6824 | -6/Garrison | Spotted B-75 Beast 6848 | -6/Garrison | Triggered checkpoint 6912 | -6/Garrison | Garrison Relay disabled 6919 | -6/Garrison | Discovered new exit (range 16) 6924 | -6/Garrison | Identified exit to Extension 7020 | -6/Garrison | Triggered checkpoint 7027 | -6/Garrison | Reached level 20 7088 | -6/Garrison | Discovered exit to Extension (range 11) 7107 | -6/Garrison | Garrison Relay disabled 7126 | -6/Garrison | Triggered checkpoint 7161 | -6/Garrison | Phase Generator disabled 7177 | -6/Garrison | Spotted B-75 Beast 7179 | -6/Garrison | Garrison Relay disabled 7206 | -6/Garrison | Garrison Relay disabled 7234 | -6/Garrison | Triggered checkpoint 7282 | -6/Garrison | Discovered exit to Extension (range 16) 7289 | -6/Garrison | Triggered checkpoint 7326 | -6/Garrison | Triggered checkpoint 7363 | -6/Garrison | Garrison Relay disabled 7419 | -6/Garrison | Entered Extension 7429 | -6/Extension | Rescued a captive Derelict 7542 | -6/Extension | Spotted B-75 Beast 7561 | -6/Extension | Destroyed B-75 Beast 7564 | -6/Extension | Spotted B-75 Beast 7592 | -6/Extension | Destroyed B-75 Beast 7609 | -6/Extension | Reached level 21 7704 | -6/Extension | Destroyed 19 combat bots 7728 | -6/Extension | High security lockdown imminent 7738 | -6/Extension | Identified exit to Factory 7803 | -6/Extension | Discovered new exit (range 6) 7805 | -6/Extension | Identified exit to Cetus 7807 | -6/Extension | Entered Cetus 7811 | -6/Cetus | Spotted Cetus Guard 7811 | -6/Cetus | Spotted Cetus Guard 7812 | -6/Cetus | Spotted Cetus Guard 7813 | -6/Cetus | Spotted Cetus Guard 7820 | -6/Cetus | Destroyed 9 combat bots 7822 | -6/Cetus | Destroyed Cetus Guard 7829 | -6/Cetus | Core integrity fell below 50% 7829 | -6/Cetus | Destroyed Cetus Guard 7839 | -6/Cetus | Destroyed Cetus Guard 7846 | -6/Cetus | Destroyed Cetus Guard 7878 | -6/Cetus | Discovered exit to Factory (range 18) 8060 | -6/Cetus | Discovered new exit (range 18) 8065 | -6/Cetus | Identified exit to Archives 8073 | -6/Cetus | Spotted Cetus Guard 8073 | -6/Cetus | Spotted Cetus Guard 8073 | -6/Cetus | Spotted Cetus Guard 8073 | -6/Cetus | Spotted Cetus Guard 8172 | -6/Cetus | Destroyed Cetus Guard 8182 | -6/Cetus | Destroyed Cetus Guard 8182 | -6/Cetus | Cetus Manufacturing Module disabled 8189 | -6/Cetus | Destroyed Cetus Guard 8203 | -6/Cetus | Destroyed Cetus Guard 8403 | -6/Cetus | Discovered exit to Factory (range 17) 8411 | -6/Cetus | Met Revision 17 8485 | -6/Cetus | Entered Archives 8609 | -6/Archives | Build established: Scavenger-Gunner 8637 | -6/Archives | Unable to access archive contents 8638 | -6/Archives | Discovered new exit (range 18) 8652 | -6/Archives | Discovered new exit (range 18) 8656 | -6/Archives | Unable to access archive contents 8669 | -6/Archives | Unable to access archive contents 8670 | -6/Archives | Discovered exit to Factory (range 18) 8688 | -6/Archives | Unable to access archive contents 8764 | -6/Archives | Identified exit to Hub_04(d) 8823 | -6/Archives | Entered Hub_04(d) 8938 | -6/Hub_04(d) | Garrison activated, responded to threat 9068 | -6/Hub_04(d) | Discovered exit to Factory (range 7) 9074 | -6/Hub_04(d) | Reached level 22 9080 | -6/Hub_04(d) | Upgraded with Propulsion slot (x1) 9166 | -6/Hub_04(d) | Garrison activated, responded to threat 9173 | -6/Hub_04(d) | First assault squad dispatched 9292 | -6/Hub_04(d) | Destroyed 12 combat bots 9465 | -6/Hub_04(d) | Network Hub disabled 9465 | -6/Hub_04(d) | Network Hub disabled 9493 | -6/Hub_04(d) | Destroyed 9 combat bots 9512 | -6/Hub_04(d) | Identified exit to Garrison 9512 | -6/Hub_04(d) | Entered Garrison 9552 | -6/Garrison | Triggered checkpoint 9598 | -6/Garrison | Destroyed 9 combat bots 9614 | -6/Garrison | Triggered checkpoint 9634 | -6/Garrison | Spotted B-75 Beast 9646 | -6/Garrison | Destroyed B-75 Beast 9691 | -6/Garrison | Build established: Scavenger-Scout 9702 | -6/Garrison | Phase Generator disabled 9709 | -6/Garrison | Found embedded Infiltrators 9709 | -6/Garrison | Discovered exit to Factory (range 12) 9712 | -6/Garrison | Triggered checkpoint 9744 | -6/Garrison | Garrison Relay disabled 9747 | -6/Garrison | Destroyed 7 combat bots 9778 | -6/Garrison | Triggered checkpoint 9784 | -6/Garrison | Triggered checkpoint 9819 | -6/Garrison | Expanded RIF knowledge: Coupler Efficiency 9821 | -6/Garrison | Discovered exit to Factory (range 13) 9831 | -6/Garrison | Garrison Relay disabled 9834 | -6/Garrison | Triggered checkpoint 9866 | -6/Garrison | Discovered exit to Factory (range 9) 9878 | -6/Garrison | Triggered checkpoint 9937 | -6/Garrison | Garrison Relay disabled 9974 | -6/Garrison | Triggered checkpoint 10002 | -6/Garrison | Garrison Relay disabled 10035 | -6/Garrison | Rescued a captive Derelict 10036 | -6/Garrison | Rescued a captive Derelict 10038 | -6/Garrison | Spotted B-75 Beast 10054 | -6/Garrison | Destroyed B-75 Beast 10087 | -6/Garrison | Destroyed 7 combat bots 10158 | -6/Garrison | Entered Factory 10158 | -5/Factory | Accompanied by 4 allies 10160 | -5/Factory | Reached level 23 10160 | -5/Factory | Upgraded with Utility slot (x1) 10298 | -5/Factory | High security lockdown imminent 10378 | -5/Factory | High security lockdown engaged 10529 | -5/Factory | Destroyed 14 combat bots 10532 | -5/Factory | Reached level 24 10574 | -5/Factory | Discovered new exit (range 18) 10575 | -5/Factory | Garrison activated, responded to threat 10585 | -5/Factory | Destroyed 10 combat bots 10596 | -5/Factory | Identified exit to Factory 10596 | -5/Factory | Entered another Factory area 10617 | -4/Factory | Central database locked down 10683 | -4/Factory | Build established: Scout 10828 | -4/Factory | Discovered new exit (range 17) 10833 | -4/Factory | Identified exit to Research 10846 | -4/Factory | First assault squad dispatched 10893 | -4/Factory | Reached level 25 10911 | -4/Factory | Upgraded with Propulsion slot (x1) 10935 | -4/Factory | Entered Research 10937 | -3/Research | Reached level 26 10982 | -3/Research | Identified exit to Garrison 10982 | -3/Research | Entered Garrison 10991 | -3/Garrison | Garrison Relay disabled 10996 | -3/Garrison | Triggered checkpoint 11008 | -3/Garrison | QS Assembler disabled 11014 | -3/Garrison | Reached level 27 11044 | -3/Garrison | Spotted B-86 Titan 11046 | -3/Garrison | Triggered checkpoint 11074 | -3/Garrison | Triggered checkpoint 11102 | -3/Garrison | Destroyed B-86 Titan 11131 | -3/Garrison | Triggered checkpoint 11218 | -3/Garrison | Discovered new exit (range 12) 11223 | -3/Garrison | Triggered checkpoint 11253 | -3/Garrison | Reached level 28 11256 | -3/Garrison | Upgraded with Weapon slot (x1) 11274 | -3/Garrison | Destroyed 12 combat bots 11355 | -3/Garrison | Garrison Relay disabled 11361 | -3/Garrison | Triggered checkpoint 11384 | -3/Garrison | Identified exit to Research 11399 | -3/Garrison | Phase Generator disabled 11401 | -3/Garrison | Build established: Scavenger-Scout 11407 | -3/Garrison | Triggered checkpoint 11452 | -3/Garrison | Garrison Relay disabled 11480 | -3/Garrison | Triggered checkpoint 11581 | -3/Garrison | Discovered exit to Research (range 13) 11633 | -3/Garrison | Destroyed 7 combat bots 11645 | -3/Garrison | Garrison Relay disabled 11675 | -3/Garrison | Discovered exit to Research (range 4) 11679 | -3/Garrison | Spotted B-75 Beast 11694 | -3/Garrison | Garrison Relay disabled 11694 | -3/Garrison | Reached level 29 11704 | -3/Garrison | Expanded RIF knowledge: Autoassimilate 11780 | -3/Garrison | Entered Research 11782 | -2/Research | Reached level 30 12030 | -2/Research | First assault squad dispatched 12075 | -2/Research | Discovered new exit (range 17) 12080 | -2/Research | Identified exit to Quarantine 12176 | -2/Research | Reached level 31 12213 | -2/Research | Destroyed 17 combat bots 12306 | -2/Research | Entered Quarantine 12342 | -2/Quarantine | Found Prototype Reactor 12342 | -2/Quarantine | Identified Zero-point Reactor 12363 | -2/Quarantine | Identified exit to Garrison 12391 | -2/Quarantine | Cryocooling Duct disabled 12406 | -2/Quarantine | Ambient heat levels rising (+20) 12406 | -2/Quarantine | Non-combat units ordered to evacuate 12432 | -2/Quarantine | Garrison activated, responded to threat 12544 | -2/Quarantine | Reached level 32 12556 | -2/Quarantine | First assault squad dispatched 12571 | -2/Quarantine | Discovered new exit (range 19) 12576 | -2/Quarantine | Identified exit to Access 12577 | -2/Quarantine | Entered Access 12684 | -1/Access | Reached level 33 12777 | -1/Access | Garrison activated, responded to threat 12827 | -1/Access | First assault squad dispatched 12893 | -1/Access | Identified exit to Garrison 12893 | -1/Access | Entered Garrison 12897 | -1/Garrison | Expanded RIF knowledge: Crosswire 12897 | -1/Garrison | Reached level 34 12909 | -1/Garrison | Destroyed 14 combat bots 12933 | -1/Garrison | Triggered checkpoint 12955 | -1/Garrison | Spotted B-99 Colossus 12965 | -1/Garrison | Triggered checkpoint 12975 | -1/Garrison | System corruption reached 10% 12985 | -1/Garrison | Core integrity fell below 50% 13080 | -1/Garrison | Destroyed B-99 Colossus 13097 | -1/Garrison | Core integrity fell below 20% 13151 | -1/Garrison | Destroyed 14 combat bots 13179 | -1/Garrison | Triggered checkpoint 13239 | -1/Garrison | Destroyed 12 combat bots 13259 | -1/Garrison | Reached level 35 13317 | -1/Garrison | Garrison Relay disabled 13323 | -1/Garrison | Triggered checkpoint 13398 | -1/Garrison | Discovered new exit (range 15) 13472 | -1/Garrison | Garrison Relay disabled 13499 | -1/Garrison | Triggered checkpoint 13522 | -1/Garrison | Garrison Relay disabled 13541 | -1/Garrison | Discovered new exit (range 13) 13544 | -1/Garrison | Discovered new exit (range 11) 13544 | -1/Garrison | Discovered new exit (range 70) 13544 | -1/Garrison | Discovered new exit (range 49) 13559 | -1/Garrison | Identified exit to Access 13641 | -1/Garrison | Spotted B-90 Cyclops 13641 | -1/Garrison | Spotted B-75 Beast 13664 | -1/Garrison | Triggered checkpoint 13711 | -1/Garrison | Triggered checkpoint 13756 | -1/Garrison | Entered Access 13962 | -1/Access | Spotted B-99 Colossus 13987 | -1/Access | Destroyed B-99 Colossus 14006 | -1/Access | First assault squad dispatched 14249 | -1/Access | Reached level 36 14285 | -1/Access | Destroyed 10 combat bots 14302 | -1/Access | High security lockdown imminent 14349 | -1/Access | Destroyed 9 combat bots 14382 | -1/Access | High security lockdown engaged 14408 | -1/Access | Build established: Scout 14709 | -1/Access | Spotted B-99 Colossus 14764 | -1/Access | Spotted Executioner 14764 | -1/Access | Spotted Striker 14776 | -1/Access | Destroyed Executioner 14788 | -1/Access | Destroyed Striker 14879 | -1/Access | Garrison activated, responded to threat 14936 | -1/Access | Spotted Executioner 14940 | -1/Access | Destroyed Executioner 15031 | -1/Access | Destroyed 28 combat bots 15043 | -1/Access | Spotted Investigator 15043 | -1/Access | Scanned by Researcher 15079 | -1/Access | Spotted Striker 15079 | -1/Access | Spotted Striker 15121 | -1/Access | Spotted Executioner 15121 | -1/Access | Spotted Executioner 15228 | -1/Access | Destroyed Striker 15261 | -1/Access | Destroyed by P-80 Master with Gamma Rifle Last Messages --------------- 15256_ P-80 Master destroyed. 15256_ Slug penetrates Wall. 15256_ A-15 Conveyor suffers critical hit (Destroy). 15256_ Destroyed Unknown Treads. 15256_ Slug penetrates H-88 Terminator. 15256_ H-88 Terminator Biometal Leg blasted off. 15256_ H-88 Terminator knocked back. 15256_ Slug penetrates Wall. 15256_ Penetrated by Slug. 15260_ Slug penetrates E-15 Imp. 15260_ Slug penetrates Wall. 15260_ Destroyed Lgt. Ion Engine. 15260_ E-15 Imp destroyed. [Achievement: 30k Club] [Achievement: 40k Club] [Achievement: 50k Club] [Achievement: 75k Club] [Achievement: Just Browsing] [Achievement: Punisher] [Achievement: Rambo] Map ----- +----------------------------------------------------+ | # ^ ??????????? | | # #####"#####"## ??????????? | | # #????# #??# ## "%" ??????????? | | # [ #?????# ###=## % = ??????????? | | # ##??####%##!## % ?????????? | | ###"#######%#*######%%! " ?????????# | | !!==/!!%/%%!R=%! "%% % ????? | | ! |=[=!/ #####+###### " k ?????????# | | ![=/ #==!i*% #"%k ??????????? | | ![[[=#=%[!! #### ??????????? | | !!=[!#[!*! "#??u#####??????????????? | | ![=!#%[!* ##?? ???????????????????? | | """"T"""" [=#!! #???%???????????????????? | | """""""""" # #??? ???????????????????? | | #############################/#####??????????????? | | ?????????????????????????# #??????????????? | | ?????????????????????????# kkA ???????????????? | | ###??????????????????????# #???BB?????????? | | +????????????????????? b #???BB?????????? | | ###??????????????????????? #??????????????? | | ??????????????????????????? g #??????????????? | | ??????????????????????????? ???????????????? | | ???????????????????????????? ????????????????? | | ######??###????????????????? ?????????????????? | | * #??#! ###+###########/######?????????????? | | #??# T @=%gg "?????????????? | | #??? "" /%g "?????????????? | | #??# "?????????????? | | #??# =#########%*#;####+####?????????????? | | #??##? ??????????#[%# ?? ????????????????? | | #???# ?????????# =# ?? ????????????????? | | #???# ?????????#A # ???????????????? | | ####???# +????????#hp#! " ???????????????? | | ##?????# #????????#=h# """ #??????????????? | | #?????# #????????# #? """#???BB?????????? | | #?????# #????????# #? " #???BB?????????? | | #?????# #????????#p #? #??????????????? | | #?????#C #????????# Y# #????????#""#??? | | #?????# #????????#h ##########????????# T??? | | ##?????# #????????# #?????????????????# #??? | | #??????# k #????????# #?????????????????# #??? | | ########## #????????# #?????????????????# #??? | | #????????# #?????????????????# +??? | | ##########k ################### # | | ########## C k=% % " " | | #?# u # | | #?# ####### ###### % #??? | | #?# #?????# #????# #??? | | ### #?????# #????# #??? | | " + #?????# #????# #??? | +----------------------------------------------------+ Best States ------------- Heat Dissipation 92 Energy Generation 58 Energy Capacity 540 Matter Stores 800 Matter Capacity 800 Sight Range 20 Robot Scan Range 22 Terrain Scan Density 210 Additional Mass Support 9 Armor Coverage 225 Resistance: KI 20 Resistance: TH 20 Resistance: EX 20 Phase Shifting 15 Evasion (%) 88 Targeting Accuracy 6 Target Analysis 8 Core Analysis 6 Kinecelleration 40 Item Schematics ----------------- None Robot Schematics ------------------ None Fabricated ------------ Nothing Repaired ---------- Imp. Heat Sink | 30% | -9/Materials VTOL Module | 40% | -9/Materials Lgt. Assault Rifle | 33% | -9/Materials VTOL Module | 56% | -9/Materials Studied --------- Lgt. Assault Rifle | -9/Materials | Hacked VTOL Module | -9/Materials | Hacked Grenade Launcher | -9/Materials | Hacked Hvy. Hammer | -9/Materials | Hacked Nuclear Pulse Array | -4/Factory | Hacked Hvy. Mass Driver | -4/Factory | Hacked Impulse Thruster Array | -2/Research | Hacked Impulse Thruster | -2/Research | Hacked Alien Tech Used ----------------- None Achievements -------------- 30k Club 40k Club 50k Club 75k Club Can't Catch Me Can't Touch This Cya! Deadly Precision Denied? Dodgeball, But With Guns Giant Slayer Hackerman I Spy Infiltrator Just Browsing Killing Spree Left-hand Path Let's See Who's Tougher Oh No You Don't! Prolific Hacker Punisher Rambo Remodeling Revising The Future The More The Merrier Treasure Hunter Challenges ------------ None RPGLIKE | -11 -10 -10 -9 -9 -9 -8 -8 -8 -8 -8 -7 -7 -7 -7 -6 -6 -6 -6 -6 -6 -6 -5 -4 -3 -3 -2 -2 -1 -1 -1 --------- Run | Yrd Mat Min Mat Min Exi Min Mat Gar Mat Gar Fac Gar Fac Gar Fac Gar Ext Cet Arc Hub Gar Fac Fac Res Gar Res Qua Acc Gar Acc Levels Raised 35 | . 1 1 4 . . 2 2 2 . 1 1 2 . 1 . 2 1 . . 1 . 2 1 1 3 2 1 1 2 1 XP Earned 56990 | 3000 1900 1450 5834 500 200 2725 3112 3228 . 1491 1626 2251 . 1586 734 2692 1199 455 157 939 739 1837 1496 2052 3977 3342 1037 2630 2782 2019 XP Spent 55425 | 2950 1530 1300 6170 . . 3015 2700 3280 . 1100 1600 2700 . 1700 . 2700 . . . 3100 . 2000 2750 275 5950 3075 . . 5855 1675 Upgrades 125 | 8 9 3 21 . . 8 7 9 . 1 2 3 . 1 . 2 . . . 3 . 1 2 1 5 9 . . 25 5 Propulsion Slot 5 | 1 . . . . . . . . . . 1 . . . . 1 . . . 1 . . 1 . . . . . . . Utility Slot 6 | 1 . 1 . . . . . . . 1 . 1 . 1 . . . . . . . 1 . . . . . . . . Weapon Slot 4 | 1 . . . . . 1 . 1 . . . . . . . . . . . . . . . . 1 . . . . . Core Integrity 34 | . 2 . 6 . . . . . . . . . . . . . . . . . . . . . . . . . 21 5 Heat Dissipation 6 | 1 1 . . . . 1 . 2 . . . . . . . . . . . . . . . . 1 . . . . . Energy Generation 5 | 1 . . . . . 1 . . . . 1 . . . . . . . . . . . 1 . 1 . . . . . Energy Storage 6 | . . . . . . . . . . . . . . . . . . . . . . . . . . 6 . . . . Matter Storage 10 | . . . . . . . 4 2 . . . . . . . . . . . . . . . . . . . . 4 . Mass Support 5 | . 1 . . . . 1 . . . . . 1 . . . 1 . . . . . . . . 1 . . . . . Inventory Capacity 3 | . 1 . 1 . . . . 1 . . . . . . . . . . . . . . . . . . . . . . Sight Range 4 | . 2 . . . . . . . . . . . . . . . . . . . . . . . . 2 . . . . Sensor Range 11 | . 1 . 4 . . 2 . 2 . . . . . . . . . . . . . . . 1 . 1 . . . . Terrain Scan Density 2 | . . . . . . 1 . 1 . . . . . . . . . . . . . . . . . . . . . . Ranged Accuracy 7 | 2 1 . . . . . 1 . . . . . . . . . . . . 2 . . . . 1 . . . . . KI Resistance % 4 | . . 2 2 . . . . . . . . . . . . . . . . . . . . . . . . . . . TH Resistance % 4 | . . . 2 . . 1 1 . . . . . . . . . . . . . . . . . . . . . . . EX Resistance % 4 | . . . 3 . . . 1 . . . . . . . . . . . . . . . . . . . . . . . KI Damage % 4 | 1 . . 3 . . . . . . . . . . . . . . . . . . . . . . . . . . . EX Damage % 1 | . . . . . . . . . . . . 1 . . . . . . . . . . . . . . . . . . Protomatter Created 10229 | . 178 41 545 . . 105 145 510 . 248 141 509 . 322 . 392 455 227 144 771 536 626 128 . 685 636 296 370 1139 1080 Integrity Restored 16819 | . 210 123 1295 . . 288 288 1089 . 369 420 942 . 1063 . 1046 429 363 432 1585 945 148 186 . 816 659 73 348 1869 1833 Core 13897 | . 210 123 1147 . . 177 288 843 . 279 346 746 . 866 . 779 429 363 432 1295 609 97 186 . 634 487 57 287 1869 1348 Parts 2922 | . . . 148 . . 111 . 246 . 90 74 196 . 197 . 267 . . . 290 336 51 . . 182 172 16 61 . 485 Protomatter Decayed 3179 | . 74 . 96 . . 5 . 173 . 93 . 82 . 155 . 165 44 106 . 153 149 480 66 . 221 286 281 . 340 210 Game ------ Seed SalvageHybridInverter Manual? 0 Play Time 04:39:57 Cumulative 23.5 hours Start 2026.02.21 @ 15:10:42 End 2026.02.21 @ 20:05:51 Sessions 1 Manual Loads 0 Difficulty Rogue Special Mode Winter2019/RPGLIKE Game No. 22 Rogue 22 Adventurer 0 Explorer 0 Win Type - Total 0 Types 0/0/0/0/0/0/0/0/0/0 Lore% 13 Gallery% 25 Achievement% 23 Wizard Run 0 Options --------- Layout 0 ASCII 0 Keyboard 0 Movement Arrows Keybinds 0 Fullscreen 1 Font 18/SmallcapsGlow Map View 76x50 Zoom Use 0% Tactical HUD 1 Map Filters NONE Filters NONE Steam 1 RUN: 1b2da450-b721-4ad3-979a-001a3295a35d